Workbook

Sheet Coal Requirement 2020
Q3: Coal Requirement in 2020: A bottom up analysis, Accompanying Excel Model This Model accompanies the research paper "Coal Requirement in 2020: A Bottom-up Analysis" by Rahul Tongia & Anurag Sehgal The study examines coal demand in 2020, the year of the 1,500 MT tonnes production target, based on various ranges of demand by the power and other sectors. This detailed model considers multiple variables, uncertainty, and choices which can impact coal demand. We are sharing this model for end-users to examine the and even change assumptions for the calculations. The aim is to increase the transparency of the analysis and broaden meaningful debate on such issues. The model remains the intellectual property of the authors/Brookings India, and should not be re-used without permission. Below are the links for the research Paper "Coal Requirement in 2020: A Bottom-up Analysis" and the accompanying "Excel Model" for downloading and sharing.
Q36: Model (Click to see key scenarios and change assumptions)
Q37: Assumptions and results
Q38: Sensitivity Analysis
Q41: Link to paper: http://www.brookings.in/impact-series-post/paper-coal-requirement-in-2020-a-bottom-up-analysis/
Q42: Share Model with others by this link
Q43: http://www.brookings.in/coal-requirement-in-2020-a-bottom-up-analysis/
Q45: Recommended citation: Tongia, Rahul; Sehgal, Anurag; Mishra, Abhishek (2016). “Coal Requirement in 2020: A Bottom-up Analysis Excel Model,” Brookings India, Accompanying Excel Model for Research Paper No. 072016-2.

Sheet Disclaimer
C3: Privious Page | P3: Next Page
D6: Acknowledgements and Disclaimers The authors gratefully acknowledge a range of people who have helped with data, feedback, ideas, etc., including leaders at the Ministry of Coal, participants at a Roundtable discussion held at Brookings India in March 2016, as well as Partha Bhattacharyya, Vivek Sahai, Rohit Chandra, Daljit Singh, and multiple others. We also benefited from detailed feedback from leaders at the Ministry of Power, Ministry of New and Renewable Energy, Central Electricity Authority, Power System Operation Corporation, and other operational and statutory bodies in the sector. We also acknowledge feedback from a number of reviewers. Support for this publication was generously provided by Tata Steel Ltd. Brookings India recognises that the value it provides is in its absolute commitment to quality, independence, and impact. Activities supported by its donors reflect this commitment and the analysis and recommendations found in this report are solely determined by the scholar(s).
D23: Model (Click to see key scenarios and change assumptions)
D24: Assumptions and results
D25: Sensitivity Analysis

Sheet Model
D1: Privious Page | L1: Select one of below 2 sliders to disable (by sliding all the way up) | O1: Next Page
B2: GDP growth rate Range | C2: Thermal Power Plant Efficency | G2: Specific Coal Consumption (kg/Kwh) | I2: Slippage | J2: 2020 Share of RE in total Generation | K2: % of old plants replaced by New supercritical | L2: Import Scenarios (Scroll to change) | M2: Import share of Utility coal demand
C3: Existing Plants | E3: New Plants | G3: Existing Thermal Plants | H3: New Thermal Plants
C4: Sub-Critical | D4: Super Critical | E4: Sub Critical | F4: Super Critical | G4: Sub Critical Super Critical | H4: Sub Critical Super Critical
G14: ='Calculations '!D21 -> 0.6454768568 | H14: ='Calculations '!D26 -> 0.5885230165 | L14: =VLOOKUP(L16,Model!X64:Y69,2,FALSE) -> Import share same as 2014-15 | M14: =VLOOKUP(O21,Model!AI62:AJ71,2,FALSE) -> Disabled
B15: =VLOOKUP(B16,Model!B66:C73,2,FALSE) -> 0.075 | C15: =VLOOKUP(C16,Model!F66:G75,2,FALSE) -> 0.31 | D15: =VLOOKUP(D16,Model!L66:M75,2,FALSE) -> 0.38 | E15: =VLOOKUP(E16,Model!L66:M75,2,FALSE) -> 0.34 | F15: =VLOOKUP(F16,Model!L66:M75,2,FALSE) -> 0.385 | G15: ='Calculations '!D22 -> 0.5265732253 | H15: ='Calculations '!D27 -> 0.519734612 | I15: =VLOOKUP(I16,Model!R65:S74,2,FALSE) -> 0.25 | J15: =0.057+J17 -> 0.108 | K15: =VLOOKUP(K16,Model!V65:W74,2,FALSE) -> 0.05
B16: 3 | C16: 6 | D16: 4 | E16: 7 | F16: 3 | G16: 4 | H16: 4 | I16: 4 | J16: 1 | K16: 1 | L16: 1 | M16: 0
G17: 4 | H17: 4 | J17: =VLOOKUP(J16,Model!T65:U74,2,FALSE) -> 0.051
L20: 0.03 | M20: 0.03 | N20: 0.03 | O20: 30 | P20: 30 | Q20: 30
O21: =VLOOKUP(M16,Model!AG62:AI71,3,FALSE) -> Disabled | R21: =VLOOKUP(G16,Model!N66:O71,2,FALSE) -> G11 | T21: =VLOOKUP(H16,Model!N66:O71,2,FALSE) -> G11
R22: =VLOOKUP(G17,Model!N66:O71,2,FALSE) -> G11 | T22: =VLOOKUP(H17,Model!N66:O71,2,FALSE) -> G11
B23: GDP | C23: 0.08 | E23: GDP | F23: 0.08 | H23: GDP | I23: 0.08 | J23: 0.08 | M23: GDP | N23: 0.08
B25: Efficeicny | E25: Efficeicny | H25: Efficeicny | M25: Efficeicny
B26: Existing Plants | E26: Existing Plants | H26: Existing Plants | M26: Existing Plants
B27: Sub-Critical | C27: 0.31 | E27: Sub-Critical | F27: 0.31 | H27: Sub-Critical | I27: 0.31 | J27: 0.31 | M27: Sub-Critical | N27: 0.31
B28: Super- Critical | C28: 0.38 | E28: Super- Critical | F28: 0.38 | H28: Super- Critical | I28: 0.38 | J28: 0.38 | M28: Super- Critical | N28: 0.38
B29: Future Plants | E29: Future Plants | H29: Future Plants | M29: Future Plants
B30: Sub-Critical | C30: 0.34 | E30: Sub-Critical | F30: 0.34 | H30: Sub-Critical | I30: 0.34 | J30: 0.34 | M30: Sub-Critical | N30: 0.34
B31: Super- Critical | C31: 0.385 | E31: Super- Critical | F31: 0.385 | H31: Super- Critical | I31: 0.385 | J31: 0.385 | M31: Super- Critical | N31: 0.385
B34: Specific Coal Consumption | C34: Kg/kwh | E34: Specific Coal Consumption | F34: Kg/kwh | H34: Specific Coal Consumption | I34: Kg/kwh | J34: Kg/kwh | M34: Specific Coal Consumption | N34: Kg/kwh
B35: Existing Plants | E35: Existing Plants | H35: Existing Plants | M35: Existing Plants
B36: Sub-Critical | C36: 0.6455 | E36: Sub-Critical | F36: 0.6455 | H36: Sub-Critical | I36: 0.6455 | J36: 0.6455 | M36: Sub-Critical | N36: 0.6455
B37: Super- Critical | C37: 0.5266 | E37: Super- Critical | F37: 0.5266 | H37: Super- Critical | I37: 0.5266 | J37: 0.5266 | M37: Super- Critical | N37: 0.5266
B38: Future Plants | E38: Future Plants | H38: Future Plants | M38: Future Plants
B39: Sub-Critical | C39: 0.5885 | E39: Sub-Critical | F39: 0.5885 | H39: Sub-Critical | I39: 0.5885 | J39: 0.5885 | M39: Sub-Critical | N39: 0.5885
B40: Super- Critical | C40: 0.5197 | E40: Super- Critical | F40: 0.5197 | H40: Super- Critical | I40: 0.5197 | J40: 0.5197 | M40: Super- Critical | N40: 0.5197
B42: 2020 Share of RE in total Genration | C42: 0.057 | E42: 2020 Share of RE in total Genration | F42: 0.057 | H42: 2020 Share of RE in total Genration | I42: 0.057 | J42: 0.108 | M42: 2020 Share of RE in total Genration | N42: 0.082
B44: Import share same as FY'14-15 | E44: Only coking coal Import | H44: Import share same as FY'14-15 | M44: Power sector reduced share by 50%
D58: Domestic | E58: Import | F58: Total
C59: Base Value | D59: 932 | E59: 296 | F59: 1228
C60: Your Assumption value | D60: =IF(L16=1,Z72,IF(L16=2,AA72,IF(L16=3,AB72,IF(L16=4,AC72,IF(L16=5,AD72,IF(L16=0,AH72)))))) -> 867.531495 | E60: =IF(L16=1,Z73,IF(L16=2,AA73,IF(L16=3,AB73,IF(L16=4,AC73,IF(L16=5,AD73,IF(L16=0,AH73)))))) -> 271.6975466 | F60: =IF(L16=1,Z74,IF(L16=2,AA74,IF(L16=3,AB74,IF(L16=4,AC74,IF(L16=5,AD74,IF(L16=0,AH74)))))) -> 1139.229042
AG61: Import power share
AG62: 0 | AI62: Disabled | AJ62: Disabled
F63: Efficency | N63: Type of Coal | Y63: Import | AG63: 1 | AH63: 0.205 | AI63: 0 | AJ63: =AH63 -> 0.205
F64: Old Plants | J64: New Plants | X64: 0 | Y64: Disable | AG64: 2 | AH64: 0.1435 | AI64: 0.3 | AJ64: =AH64 -> 0.1435
B65: GDP | D65: PLF | F65: Sub-Critical | H65: Super Critical | J65: Sub Critical | L65: Super Critical | N65: Sub Critical | R65: 1 | S65: 0.1 | T65: 1 | U65: 0.051 | V65: 1 | W65: 0.05 | X65: 1 | Y65: Import share same as 2014-15 | AG65: 3 | AH65: 0.123 | AI65: 0.4 | AJ65: 0.123
B66: 1 | C66: 0.085 | D66: 1 | E66: 0.8 | F66: 1 | G66: 0.36 | H66: 1 | I66: 0.31 | J66: 0.4 | K66: 0.31 | L66: 1 | M66: 0.4 | N66: 1 | O66: G14 | R66: 2 | S66: 0.15 | T66: 2 | U66: 0.045 | V66: 2 | W66: 0.045 | X66: 2 | Y66: Power sector reduced share by 50% | AG66: 4 | AH66: 0.1025 | AI66: 0.5 | AJ66: 0.1025
B67: 2 | C67: 0.08 | D67: 2 | E67: 0.75 | F67: 2 | G67: 0.35 | H67: 2 | I67: 0.32 | J67: 0.39 | K67: 0.32 | L67: 2 | M67: 0.39 | N67: 2 | O67: G13 | R67: 3 | S67: 0.2 | T67: 3 | U67: 0.041 | V67: 3 | W67: 0.04 | X67: 3 | Y67: No import for Power | AG67: 5 | AH67: 0.082 | AI67: 0.6 | AJ67: 0.082
B68: 3 | C68: 0.075 | D68: 3 | E68: 0.7 | F68: 3 | G68: 0.34 | H68: 3 | I68: 0.33 | J68: 0.38 | K68: 0.33 | L68: 3 | M68: 0.385 | N68: 3 | O68: G12 | R68: 4 | S68: 0.25 | T68: 4 | U68: 0.035 | V68: 4 | W68: 0.035 | X68: 4 | Y68: No import for power and non-power sector reduced by 50% | AG68: 6 | AH68: 0.0615 | AI68: 0.7 | AJ68: 0.0615
B69: 4 | C69: 0.07 | D69: 4 | E69: 0.6446 | F69: 4 | G69: 0.33 | H69: 4 | I69: 0.34 | J69: 0.37 | K69: 0.34 | L69: 4 | M69: 0.38 | N69: 4 | O69: G11 | R69: 3 | S69: 0.3 | T69: 4 | U69: 0.035 | V69: 1 | W69: 0.035 | X69: 5 | Y69: Only coking coal import | AG69: 7 | AH69: 0.041 | AI69: 0.8 | AJ69: 0.041
B70: 5 | C70: 0.065 | D70: 5 | E70: 0.6 | F70: 5 | G70: 0.32 | H70: 5 | I70: 0.35 | J70: 0.36 | K70: 0.35 | L70: 5 | M70: 0.36 | N70: 5 | O70: G10 | R70: 3 | S70: 0.35 | T70: 6 | U70: 0.025 | V70: 6 | W70: 0.025 | AG70: 8 | AH70: 0.0205 | AI70: 0.9 | AJ70: 0.0205
B71: 6 | C71: 0.06 | D71: 6 | E71: 0.55 | F71: 6 | G71: 0.31 | H71: 6 | I71: 0.36 | J71: 0.35 | K71: 0.36 | L71: 6 | M71: 0.35 | N71: 6 | O71: G9 | R71: 7 | S71: 0.4 | T71: 7 | U71: 0.02 | V71: 7 | W71: 0.02 | Z71: 1 | AA71: 2 | AB71: 3 | AC71: 4 | AD71: 5 | AG71: 9 | AH71: 0 | AI71: 1 | AJ71: 0
B72: 7 | C72: 0.055 | D72: 7 | E72: 0.5 | F72: 7 | G72: 0.3 | H72: 7 | I72: 0.37 | J72: 0.34 | K72: 0.37 | L72: 7 | M72: 0.34 | R72: 8 | S72: 0.45 | T72: 8 | U72: 0.015 | V72: 8 | W72: 0.015 | Y72: ='Assumptions and Results'!P59 -> 867.531495 | Z72: =Y72 -> 867.531495 | AA72: =Z72+((Z73-AA73)*1.27158801406235) -> 958.3031622 | AB72: =Y72+('Assumptions and Results'!Q56*1.27158801406235) -> 1049.074829 | AC72: =Y72+((Y73-AC73)*1.27158801406235) -> 1122.247172 | AD72: =Y72+((Y73-AD73)*1.27158801406235) -> 1130.421246 | AG72: ='Assumptions and Results'!P59 -> 867.531495 | AH72: =AG72+((AG73-AH73)*1.27158801406235) -> 
B73: 8 | C73: 0.05 | D73: 8 | E73: 0.45 | F73: 8 | G73: 0.29 | H73: 8 | I73: 0.38 | J73: 0.33 | K73: 0.38 | L73: 8 | M73: 0.33 | R73: 9 | S73: 0.5 | T73: 9 | U73: 0.01 | V73: 9 | W73: 0.02 | X73: 0.01 | Y73: ='Assumptions and Results'!Q59 -> 271.6975466 | Z73: =Y73 -> 271.6975466 | AA73: =Z73-('Assumptions and Results'!Q56/2) -> 200.3130524 | AB73: =Z73-'Assumptions and Results'!Q56 -> 128.9285583 | AC73: =Y73-AB73-( (Y73-AB73)/2) -> 71.38449417 | AD73: ='Assumptions and Results'!K50 -> 64.95625261 | AG73: ='Assumptions and Results'!Q59 -> 271.6975466 | AH73: =AG73-('Assumptions and Results'!N56*Model!O21) -> 
F74: 9 | G74: 0.28 | H74: 9 | I74: 0.39 | J74: 0.32 | K74: 0.39 | L74: 9 | M74: 0.32 | R74: 10 | S74: 0.55 | T74: 10 | U74: 0 | V74: 10 | W74: 0.005 | Y74: ='Assumptions and Results'!P60 -> 1139.229042 | Z74: =Y74 -> 1139.229042 | AA74: =AA72+AA73 -> 1158.616215 | AB74: =AB72+AB73 -> 1178.003388 | AC74: =AC72+AC73 -> 1193.631666 | AD74: =AD72+AD73 -> 1195.377499 | AG74: ='Assumptions and Results'!S60 -> 1139 | AH74: =ROUND((AH72+AH73),0) -> 
F75: 10 | G75: 0.27 | H75: 10 | I75: 0.4 | J75: 0.31 | K75: 0.4 | L75: 10 | M75: 0.31

Sheet Assumptions and Results
C4: Privious Page | M4: Next page
B11: Assumptions (Inputs to model) | I11: Snap Shot
J14: Coking Coal | M14: Non Coking Coal | P14: Total Coal
J15: Domestic | K15: Import | L15: Total | M15: Domestic | N15: Import | O15: Total | P15: Domestic | Q15: Imports
I16: 2015
I17: Steel (+boilers) | J17: 22.3 | K17: 43.7 | L17: =J17+K17 -> 66 | M17: 0.4 | N17: 0 | O17: =M17+N17 -> 0.4 | P17: =J17+M17 -> 22.7 | Q17: =K17+N17 -> 43.7
I18: Sponge Iron | M18: 14.7 | N18: 9.2 | O18: =M18+N18 -> 23.9 | P18: =M18 -> 14.7 | Q18: =N18 -> 9.2
B19: Efficiency | F19: GDP | I19: Cement | M19: 11.4 | N19: 8.1 | O19: =M19+N19 -> 19.5 | P19: =M19 -> 11.4 | Q19: =N19 -> 8.1
B20: Old Plants | C20: Efficiency | F20: Assumed GDP Growth | G20: =Model!$B$15 -> 0.075 | I20: Fertilizer | M20: 2.3 | N20: 0 | O20: =M20+N20 -> 2.3 | P20: =M20 -> 2.3 | Q20: 0
B21: Sub-Critical | C21: =Model!C15 -> 0.31 | I21: Others | M21: 85.6 | N21: 0 | O21: =M21+N21 -> 85.6 | P21: =M21 -> 85.6 | Q21: 0
B22: Super Critical | C22: =Model!D15 -> 0.38 | E22: 6
B23: New Plants | I23: Power (Utility) | M23: 418.5 | N23: 125 | O23: =M23+N23 -> 543.5 | P23: =M23 -> 418.5 | Q23: 125
B24: Sub Critical | C24: =Model!E15 -> 0.34 | F24: Old plant Replaced by New Super Critical | I24: Power (Captive) | M24: 53.5 | N24: 26.1 | O24: =M24+N24 -> 79.6 | P24: =M24 -> 53.5 | Q24: 26.1
B25: Super Critical | C25: =Model!F15 -> 0.385 | F25: % of old plants replaced by New supercritical | G25: =Model!K15 -> 0.05
I26: 2014-15 | J26: =SUM(J17:J25) -> 22.3 | K26: 43.7 | L26: 66 | M26: 586.4 | N26: 168.4 | O26: 754.8 | P26: =SUM(P17:P24) -> 608.7 | Q26: =SUM(Q17:Q24) -> 212.1
B27: PLF | F27: 2020 Thermal Power share displacement by RE | P27: =P26+Q26 -> 820.8 | S27: =ROUND(P27,0) -> 821
B28: PLF | C28: 0.6446 | F28: Displacement from Base share | G28: =Model!J17 -> 0.051
B30: Type of Coal | F30: Slippage
B31: Old Plants | C31: Type | D31: GCV BOUND | F31: Slippage | G31: =Model!I15 -> 0.25 | I31: Thermal Power Plants Capacity Basis
B32: Domestic Sub critical | C32: =Model!R21 -> G11 | D32: 2 | E32: Lower | I32: 2020
B33: Domestic Super Critical | C33: =Model!R22 -> G11 | D33: 2 | E33: Lower | F33: Number of Year to forecast | J33: Coking Coal | M33: Non Coking Coal | P33: Total Coal
B34: New Plants | F34: No of Year | G34: 5 | J34: Domestic | K34: Import | L34: Total | M34: Domestic | N34: Import | O34: Total | P34: Domestic | Q34: Imports
B35: Domestic Sub critical | C35: =Model!T21 -> G11 | D35: =D32 -> 2 | E35: Lower | I35: Steel (+boilers) | J35: =J17*(1+F41)^G34 -> 33.1470122 | K35: =K17*(1+F41)^G34 -> 64.95625261 | L35: =J35+K35 -> 98.10326482 | M35: =M17*(1+F41)^G34 -> 0.5945652413 | N35: =N17*(1+F41)^G34 -> 0 | O35: =M35+N35 -> 0.5945652413 | P35: =J35+M35 -> 33.74157744 | Q35: =K35+N35 -> 64.95625261
B36: Domestic Super Critical | C36: =Model!T22 -> G11 | D36: =D33 -> 2 | E36: Lower | I36: Sponge Iron | M36: =M18*(1+$F$42)^G34 -> 21.85027262 | N36: =N18*(1+$F$42)^G34 -> 13.67500055 | O36: =M36+N36 -> 35.52527317 | P36: =M36 -> 21.85027262 | Q36: 13.67500055
B37: Imports | C37: 5500 | D37: N/A | I37: Cement | M37: =M19*(1+$F$43)^5 -> 19.86746746 | N37: =N19*(1+$F$43)^G34 -> 14.11635846 | O37: =M37+N37 -> 33.98382592 | P37: 19.86746746 | Q37: 14.11635846
I38: Fertilizer | M38: =M20*(1+$F$44)^G34 -> 3.056202649 | N38: =N20*(1+$F$44)^G34 -> 0 | O38: =M38+N38 -> 3.056202649 | P38: 3.056202649 | Q38: 0
B39: Elasticity | I39: Others | M39: =M21*(1+$F$45)^G34 -> 122.8898703 | N39: =N21*(1+$F$45)^G34 -> 0 | O39: =M39+N39 -> 122.8898703 | P39: 122.8898703 | Q39: 0
B40: Segments | C40: Elasticities | D40: Ft. Growth Rates | F40: ElasticityxGDP
B41: Steel (+boilers) | C41: 1.1 | F41: =C41*$G$20 -> 0.0825 | I41: Power (Utility) | M41: ='Calculations '!I28 -> 711.9950084 | N41: ='Calculations '!L28 -> 183.386928 | O41: =M41+N41 -> 895.3819364 | P41: =M41 -> 711.9950084 | Q41: =N41 -> 183.386928
B42: Sponge Iron | C42: 1.1 | F42: =C42*$G$20 -> 0.0825 | I42: Power (Captive) | M42: =M24*(1+$F$48)^G34 -> 74.16400944 | N42: =N24*(1+$F$48)^G34 -> 36.18094666 | O42: =M42+N42 -> 110.3449561 | P42: =M42 -> 74.16400944 | Q42: =N42 -> 36.18094666
B43: Cement | C43: na | D43: 0.1175 | F43: =D43 -> 0.1175
B44: Fertilizer | C44: 0.78 | F44: =C44*$G$20 -> 0.0585 | I44: Capacity 2020 | J44: =SUM(J35:J43) -> 33.1470122 | K44: 64.95625261 | L44: 98.10326482 | M44: 954.4173961 | N44: 247.3592337 | O44: 1201.77663 | P44: =SUM(P35:P42) -> 987.5644083 | Q44: =SUM(Q35:Q42) -> 312.3154863
B45: Others | C45: 1 | F45: =C45*$G$20 -> 0.075 | P45: =P44+Q44 -> 1299.879895 | S45: =ROUND(P45,0) -> 1300
I46: Electricity Demand basis
B47: Power (Utility) | C47: 0.9 | F47: =C47*$G$20 -> 0.0675 | I47: 2020
B48: Power (Captive) | C48: 0.9 | F48: =C48*$G$20 -> 0.0675 | J48: Coking Coal | M48: Non Coking Coal | P48: Total Coal
J49: Domestic | K49: Import | L49: Total | M49: Domestic | N49: Import | O49: Total | P49: Domestic | Q49: Imports
I50: Steel (+boilers) | J50: =J35 -> 33.1470122 | K50: =K35 -> 64.95625261 | L50: =J50+K50 -> 98.10326482 | M50: =M35 -> 0.5945652413 | N50: 0 | O50: =M50+N50 -> 0.5945652413 | P50: =J50+M50 -> 33.74157744 | Q50: =K50+N50 -> 64.95625261
I51: Sponge Iron | M51: 21.85027262 | N51: 13.67500055 | O51: =M51+N51 -> 35.52527317 | P51: =M51 -> 21.85027262 | Q51: 13.67500055
I52: Cement | M52: 19.86746746 | N52: 14.11635846 | O52: =M52+N52 -> 33.98382592 | P52: 19.86746746 | Q52: 14.11635846
I53: Fertilizer | M53: 3.056202649 | N53: 0 | O53: =M53+N53 -> 3.056202649 | P53: 3.056202649 | Q53: 0
I54: Others | M54: 122.8898703 | N54: 0 | O54: =M54+N54 -> 122.8898703 | P54: 122.8898703 | Q54: 0
I56: Power (Utility) | M56: =O56-N56 -> 591.9620951 | N56: ='Calculations '!K44 -> 142.7689883 | O56: ='Calculations '!I46 -> 734.7310834 | P56: =M56 -> 591.9620951 | Q56: =N56 -> 142.7689883
I57: Power (Captive) | M57: =M42 -> 74.16400944 | N57: =N42 -> 36.18094666 | O57: =M57+N57 -> 110.3449561 | P57: =M57 -> 74.16400944 | Q57: =N57 -> 36.18094666
I59: Demand 2020 | J59: =SUM(J50:J58) -> 33.1470122 | K59: 64.95625261 | L59: 98.10326482 | M59: 834.3844828 | N59: 206.741294 | O59: 1041.125777 | P59: =SUM(P50:P57) -> 867.531495 | Q59: =SUM(Q50:Q57) -> 271.6975466
P60: =P59+Q59 -> 1139.229042 | S60: =ROUND(P60,0) -> 1139

Sheet Your Result (hidden)
B9: Snap Shot Base | L9: Snap Shot Your Assumption
B11: Capacity | L11: Capacity
C12: Coking Coal | F12: Non Coking Coal | I12: Total Coal | M12: Coking Coal | P12: Non Coking Coal | S12: Total Coal
C13: Domestic | D13: Import | E13: Total | F13: Domestic | G13: Import | H13: Total | I13: Domestic | J13: Imports | M13: Domestic | N13: Import | O13: Total | P13: Domestic | Q13: Import | R13: Total | S13: Domestic | T13: Imports
B14: Steel (+boilers) | C14: 33.99768454 | D14: 66.62326523 | E14: 100.6209498 | F14: 0.609823938 | G14: 0 | H14: 0.609823938 | I14: 34.60750848 | J14: 66.62326523 | L14: Steel (+boilers) | M14: 33.99768454 | N14: 66.62326523 | O14: 100.6209498 | P14: 0.609823938 | Q14: 0 | R14: 0.609823938 | S14: 34.60750848 | T14: 66.62326523
B15: Sponge Iron | F15: 22.41102972 | G15: 14.02595057 | H15: 36.4369803 | I15: 22.41102972 | J15: 14.02595057 | L15: Sponge Iron | P15: 22.41102972 | Q15: 14.02595057 | R15: 36.4369803 | S15: 22.41102972 | T15: 14.02595057
B16: Cement | F16: 19.86746746 | G16: 14.11635846 | H16: 33.98382592 | I16: 19.86746746 | J16: 14.11635846 | L16: Cement | P16: 19.86746746 | Q16: 14.11635846 | R16: 33.98382592 | S16: 19.86746746 | T16: 14.11635846
B17: Fertilizer | F17: 3.112921336 | G17: 0 | H17: 3.112921336 | I17: 3.112921336 | J17: 0 | L17: Fertilizer | P17: 3.112921336 | Q17: 0 | R17: 3.112921336 | S17: 3.112921336 | T17: 0
B18: Others | F18: 125.7744834 | G18: 0 | H18: 125.7744834 | I18: 125.7744834 | J18: 0 | L18: Others | P18: 125.7744834 | Q18: 0 | R18: 125.7744834 | S18: 125.7744834 | T18: 0
B20: Power (Utility) | F20: 714.2013306 | G20: 183.386928 | H20: 897.5882586 | I20: 714.2013306 | J20: 183.386928 | L20: Power (Utility) | P20: 714.2013306 | Q20: 183.386928 | R20: 897.5882586 | S20: 714.2013306 | T20: 183.386928
B21: Power (Captive) | F21: 75.74041995 | G21: 36.94999927 | H21: 112.6904192 | I21: 75.74041995 | J21: 36.94999927 | L21: Power (Captive) | P21: 75.74041995 | Q21: 36.94999927 | R21: 112.6904192 | S21: 75.74041995 | T21: 36.94999927
B23: Capacity 2020 | C23: 33.99768454 | D23: 66.62326523 | E23: 100.6209498 | F23: 961.7174763 | G23: 248.4792363 | H23: 1210.196713 | I23: 995.7151609 | J23: 315.1025016 | L23: Capacity 2020 | M23: 33.99768454 | N23: 66.62326523 | O23: 100.6209498 | P23: 961.7174763 | Q23: 248.4792363 | R23: 1210.196713 | S23: 995.7151609 | T23: 315.1025016
I24: =I23+J23 -> 1310.817662 | S24: =S23+T23 -> 1310.817662 | V24: =ROUND(S24,0) -> 1311
B28: Demand Basis | L28: Demand Basis
B29: 2020 | L29: 2020
C30: Coking Coal | F30: Non Coking Coal | I30: Total Coal | M30: Coking Coal | P30: Non Coking Coal | S30: Total Coal
C31: Domestic | D31: Import | E31: Total | F31: Domestic | G31: Import | H31: Total | I31: Domestic | J31: Imports | M31: Domestic | N31: Import | O31: Total | P31: Domestic | Q31: Import | R31: Total | S31: Domestic | T31: Imports
B32: Steel (+boilers) | C32: 33.99768454 | D32: 66.62326523 | E32: 100.6209498 | F32: 0.609823938 | G32: 0 | H32: 0.609823938 | I32: 34.60750848 | J32: 66.62326523 | L32: Steel (+boilers) | M32: 33.99768454 | N32: 66.62326523 | O32: 100.6209498 | P32: 0.609823938 | Q32: 0 | R32: 0.609823938 | S32: 34.60750848 | T32: 66.62326523
B33: Sponge Iron | F33: 22.41102972 | G33: 14.02595057 | H33: 36.4369803 | I33: 22.41102972 | J33: 14.02595057 | L33: Sponge Iron | P33: 22.41102972 | Q33: 14.02595057 | R33: 36.4369803 | S33: 22.41102972 | T33: 14.02595057
B34: Cement | F34: 19.86746746 | G34: 14.11635846 | H34: 33.98382592 | I34: 19.86746746 | J34: 14.11635846 | L34: Cement | P34: 19.86746746 | Q34: 14.11635846 | R34: 33.98382592 | S34: 19.86746746 | T34: 14.11635846
B35: Fertilizer | F35: 3.112921336 | G35: 0 | H35: 3.112921336 | I35: 3.112921336 | J35: 0 | L35: Fertilizer | P35: 3.112921336 | Q35: 0 | R35: 3.112921336 | S35: 3.112921336 | T35: 0
B36: Others | F36: 125.7744834 | G36: 0 | H36: 125.7744834 | I36: 125.7744834 | J36: 0 | L36: Others | P36: 125.7744834 | Q36: 0 | R36: 125.7744834 | S36: 125.7744834 | T36: 0
B38: Power (Utility) | F38: 647.7154478 | G38: 167.2874441 | H38: 815.0028919 | I38: 647.7154478 | J38: 167.2874441 | L38: Power (Utility) | P38: 647.7154478 | Q38: 167.2874441 | R38: 815.0028919 | S38: 647.7154478 | T38: 167.2874441
B39: Power (Captive) | F39: 75.74041995 | G39: 36.94999927 | H39: 112.6904192 | I39: 75.74041995 | J39: 36.94999927 | L39: Power (Captive) | P39: 75.74041995 | Q39: 36.94999927 | R39: 112.6904192 | S39: 75.74041995 | T39: 36.94999927
B41: Demand 2020 | C41: 33.99768454 | D41: 66.62326523 | E41: 100.6209498 | F41: 895.2315936 | G41: 232.3797524 | H41: 1127.611346 | I41: 929.2292781 | J41: 299.0030176 | L41: Demand 2020 | M41: 33.99768454 | N41: 66.62326523 | O41: 100.6209498 | P41: 895.2315936 | Q41: 232.3797524 | R41: 1127.611346 | S41: 929.2292781 | T41: 299.0030176
I42: =I41+J41 -> 1228.232296 | S42: =S41+T41 -> 1228.232296 | V42: =ROUND(S42,0) -> 1228

Sheet Sensitivity Analysis
D3: Privious Page
B7: Sensitivities ( For all the variables)
B9: This sheet contains sensitivity analysis. The analysis is done by changing individual variables to see impact on Coal demand or CAGR or PLF
B10: 2020 Coal Demand
B12: Sensitivity Slippage (Capacity) | J12: Sensitivity Analysis Efficiency (Capacity) | R12: Sensitivity Analysis PLF (Capacity)
B13: Slippage | C13: 0.5 | D13: 0.4 | E13: 0.3 | F13: 0.25 | G13: 0.2 | H13: 0.1 | J13: Efficiency values | K13: 35% & 40% | L13: 35% & 38% | M13: 33% & 40% | N13: 34% & 38.5% | O13: 33%&36% | P13: 31%&38% | S13: 0.45 | T13: 0.5 | U13: 0.55 | V13: 0.61 | W13: 0.6446 | X13: 0.7 | Y13: 0.75 | Z13: 0.8
B14: Capacity coming online | C14: =146.7*C13 -> 73.35 | D14: =146.7*(1-D13) -> 88.02 | E14: =146.7*(1-E13) -> 102.69 | F14: =146.7*(1-F13) -> 110.025 | G14: =146.7*(1-G13) -> 117.36 | H14: =146.7*(1-H13) -> 132.03 | J14: Domestic | K14: 973.592512 | L14: 983.4140107 | M14: 1004.230262 | N14: 995.7312918 | O14: 1024.964537 | P14: 1048.642768 | R14: Domestic | S14: 780.0983932 | T14: 835.5025295 | U14: 890.9066658 | V14: 957.3916295 | W14: 995.6858742 | X14: 1057.119075 | Y14: 1112.523211 | Z14: 1167.927348
B15: Domestic | C15: 912.23 | D15: 945.63 | E15: 979.03 | F15: 995.73 | G15: 1012.43 | H15: 1045.83 | J15: Total | K15: 1282.846841 | L15: 1296.102483 | M15: 1320.290244 | N15: 1310.830523 | O15: 1348.274379 | P15: 1375.820698 | R15: Imports | S15: 259.736066 | T15: 273.9609285 | U15: 288.1857911 | V15: 305.2556262 | W15: 315.099231 | X15: 330.8603787 | Y15: 345.0852413 | Z15: 359.3101038
B16: Imports | C16: 287.81 | D16: 298.73 | E16: 309.64 | F16: 315.1 | G16: 320.56 | H16: 331.47 | J16: CAGR (2020) | K16: 0.09342120556 | L16: 0.09567158533 | M16: 0.09973086297 | N16: 0.09815043902 | O16: 0.1043536904 | P16: 0.108829823 | R16: Total | S16: 1039.834459 | T16: 1109.463458 | U16: 1179.092457 | V16: 1262.647256 | W16: 1310.785105 | X16: 1387.979454 | Y16: 1457.608453 | Z16: 1527.237451
B17: CAGR | C17: 0.079 | D17: 0.087 | E17: 0.094 | F17: 0.098 | G17: 0.102 | H17: 0.109 | R17: CAGR | S17: 0.04844432075 | T17: 0.06212377647 | U17: 0.07513277821 | V17: 0.08995592932 | W17: 0.09814282917 | X17: 0.1107827786 | Y17: 0.1217102956 | Z17: 0.1322278768
B33: Sensitivity GDP (Demand) | J33: Sensitivity Analysis Efficiency (Demand) | R33: Renewables Share Impact on PLF (Demand)
B34: GDP Rate | C34: 0.06 | D34: 0.07 | E34: 0.075 | F34: 0.08 | G34: 0.085 | J34: Efficiency values | K34: 35% & 40% | L34: 35% & 38% | M34: 33% & 40% | N34: 34% & 38.5% | O34: 33%&36% | P34: 31%&38% | R34: Renewables share increased additional over 2015 in 2020 | S34: Thermal share | T34: Thermal BU | U34: PLF
B35: Total coal demand | C35: 1135.904548 | D35: 1181.242221 | E35: 1204.515976 | F35: 1228.203218 | G35: 1252.3003 | J35: Domestic | K35: 926.7442996 | L35: 929.8593713 | M35: 927.0463284 | N35: 929.1968345 | O35: 933.6225908 | P35: 930.5024003 | R35: 0.06 | S35: 0.7436626764 | T35: 1215.380082 | U35: 0.605924
B36: Domestic coal | C36: 864.1344197 | D36: 896.0985336 | E36: 912.5040422 | F36: 929.1900225 | G36: 946.1806889 | J36: Total | K36: 1220.456771 | L36: 1226.471877 | M36: 1227.237558 | N36: 1228.200188 | O36: 1239.936116 | P36: 1240.908392 | R36: 0.07 | S36: 0.7357513714 | T36: 1202.450507 | U36: 0.599478
B37: CAGR | C37: 0.06726362448 | D37: 0.07565037335 | E37: 0.07985601797 | F37: 0.08407014989 | G37: 0.08829099812 | J37: CAGR (2020) | K37: 0.08 | L37: 0.08 | M37: 0.08 | N37: 0.08394279351 | O37: 0.08600641949 | P37: 0.08617668102 | R37: 0.08 | S37: 0.7278400663 | T37: 1189.520932 | U37: 0.593032
R38: 0.09 | S38: 0.7199287612 | T38: 1176.591356 | U38: 0.586586
R39: 0.1 | S39: 0.7120174562 | T39: 1163.661781 | U39: 0.58014
R40: 0.11 | S40: 0.7041061511 | T40: 1150.732206 | U40: 0.573694
B57: Import Sensitivity
B58: Demand Basis
C59: Scenario | D59: Case | E59: Total coal (MT) | F59: Domestic consumption (MT) | G59: Total import (MT) | H59: Non power imports (MT) | I59: Power imports (MT)
B60: Base Case | C60: Imports grow but remain same % share** as in 2015, for non power sector. Power sector Imports calculated separately | D60: a | E60: 1228.203218 | F60: 929.1900225 | G60: 299.0131958 | H60: 131.712303 | I60: 167.3008928
C61: 50% import substitution of power sector by domestic coal and non power sector remains as is | D61: b | E61: 1250.921677 | F61: 1035.558928 | G61: 215.3627494 | H61: 131.712303 | I61: 83.65044639
C62: 100% Import substitution of power sector by domestic coal | D62: c | E62: 1273.640136 | F62: 1141.927833 | G62: 131.712303 | H62: 131.712303 | I62: 0
C63: 50% import reduction for the non-power sector and 100% import substitution for power sector by domestic coal | D63: d | E63: 1287.498348 | F63: 1206.812642 | G63: 80.68570594 | H63: 80.68570594 | I63: 0
C64: Only coking coal Imports | D64: e | E64: 1291.317538 | F64: 1224.694273 | G64: 66.62326523 | H64: 66.62326523 | I64: 0
B69: Capacity Basis
C70: Scenario | D70: Case | E70: Total coal (MT) | F70: Domestic consumption (MT) | G70: Total import (MT) | H70: Non power imports (MT) | I70: Power imports (MT)
B71: Base Case | C71: Imports grow but remain same % share** as in 2015, for non power sector. Power sector imports calculated separately | D71: a | E71: 1310.785105 | F71: 995.6858742 | G71: 315.099231 | H71: 131.712303 | I71: 183
C72: 50% import substitution of power sector by domestic coal and non power sector remains as is | D72: b | E72: 1335.687951 | F72: 1112.282184 | G72: 223.405767 | H72: 131.712303 | I72: 92
C73: 100% Import substitution of power sector by domestic coal | D73: c | E73: 1360.590797 | F73: 1228.878494 | G73: 131.712303 | H73: 131.712303 | I73: 0
C74: 50% import reduction for the non-power sector and 100% import substitution for power sector by domestic coal | D74: d | E74: 1374.449009 | F74: 1293.763303 | G74: 80.68570594 | H74: 80.68570594 | I74: 0
C75: Only coking coal Imports | D75: e | E75: 1378.268199 | F75: 1311.644934 | G75: 66.62326523 | H75: 66.62326523 | I75: 0

Sheet Power Demand Projections (hidden)
A1: Power Demand Projections | D1: Power Demand projection Y-o-Y
A3: From 2015 to 2020 | L3: Commentary and Sources
C4: ='Assumptions and Results'!G20 -> 0.075 | D4: GDP from assumption sheet
L5: 2015 data for supply and shortfall from CEA
D6: units | E6: 2015 | F6: 2016 | G6: 2017 | H6: 2018 | I6: 2019 | J6: 2020
C7: Supply (Calculated = output) | D7: BU | E7: ='Calculations '!D7 -> 1110.21 | F7: =E7+F11+F14+F17-F19 -> 1194.03491 | G7: =F7+G11+G14+G17-G19 -> 1288.214371 | H7: =G7+H11+H14+H17-H19 -> 1366.795448 | I7: =H7+I11+I14+I17-I19 -> 1457.687345 | J7: =I7+J11+J14+J17-J19 -> 1555.352397 | L7: 2015 is taken as given (gross)
C8: GDP Growth | F8: =C4 -> 0.075 | G8: =F8 -> 0.075 | H8: =G8 -> 0.075 | I8: =H8 -> 0.075 | J8: =I8 -> 0.075 | L8: Assume constant (figures are growth into year given)
C9: Demand Elasticity | F9: =F26 -> 0.9 | G9: =G26 -> 0.9 | H9: =H26 -> 0.9 | I9: =I26 -> 0.9 | J9: =J26 -> 0.9 | L9: Electricity to GDP elasticity may vary, but this is somewhat on the high side compared to historical and INDCs - assumes some growth of manufacturing
C10: Organic growth | F10: =F9*F8 -> 0.0675 | G10: =G9*G8 -> 0.0675 | H10: =H9*H8 -> 0.0675 | I10: =I9*I8 -> 0.0675 | J10: =J9*J8 -> 0.0675 | L10: Simple multiplication
C11: Organic growth | D11: BU | F11: =F10*E7 -> 74.939175 | G11: =G10*F7 -> 80.59735643 | H11: =H10*G7 -> 86.95447005 | I11: =I10*H7 -> 92.25869273 | J11: =J10*I7 -> 98.39389579
C12: Latent Demand (shortfall) [start of year] | E12: 0.036 | F12: 0.03 | G12: 0.025 | H12: =Model!L20 -> 0.03 | I12: =Model!M20 -> 0.03 | J12: =Model!N20 -> 0.03 | L12: Load-shedding aka shortfall TOTAL in units (not peak shortfall) - per official numbers for start of year
C13: Additional demand from meeting shortfall | F13: =E12-F12 -> 0.006 | G13: =F12-G12 -> 0.005 | H13: =G12-H12 -> -0.005 | I13: =H12-I12 -> 0 | J13: 0
C14: Additional demand from meeting shortfall | D14: BU | F14: =F13*E7 -> 6.66126 | G14: =G13*F7 -> 5.97017455 | H14: =H13*G7 -> -6.441071856 | I14: =I13*H7 -> 0 | J14: =J13*I7 -> 0
C15: Unelectrified HouseHolds | D15: million | E15: 60 | F15: 50 | G15: 30 | H15: =Model!O20 -> 30 | I15: =Model!P20 -> 30 | J15: =Model!Q20 -> 30 | L15: Start of year numbers
C16: Per HH consumption of new HH | D16: units/yr | E16: 500 | F16: 500 | G16: 500 | H16: 500 | I16: 500 | J16: 500 | L16: about 40 units/month
C17: New HH non-organic demand | D17: BU | F17: =(E15-F15)*1000000*F16/1000000000 -> 5 | G17: =(F15-G15)*1000000*G16/1000000000 -> 10 | H17: =(G15-H15)*1000000*H16/1000000000 -> 0 | I17: =(H15-I15)*1000000*I16/1000000000 -> 0 | J17: =(I15-J15)*1000000*J16/1000000000 -> 0
C18: Technical Loss reduction | D18: % of supply | F18: 0.0025 | G18: 0.002 | H18: 0.0015 | I18: 0.001 | J18: 0.0005 | L18: Theft reduction and collection don't reduce the demand! (start of year)
C19: Avoided generation from loss reduction | D19: BU | F19: =F18*E7 -> 2.775525 | G19: =G18*F7 -> 2.38806982 | H19: =H18*G7 -> 1.932321557 | I19: =I18*H7 -> 1.366795448 | J19: =J18*I7 -> 0.7288436725
C20: Coal-based generation | D20: BU | E20: =E7*E27 -> 878.287131 | F20: =F7*F31 -> 1178.639693 | G20: =G7*G31 -> 1254.995343 | H20: =H7*H31 -> 1313.927364 | I20: =I7*I31 -> 1382.508931 | J20: =J7*J31 -> 1455.083187
C21: 5 year CAGR | D21: BU | J21: =(J20/E20)^(1/5)-1 -> 0.1062422996 | L21: This is higher than historical due to meeting latent damend
C22: coal demand CAGR | D22: coal-based BU
F24: 2016 | G24: 2017 | H24: 2018 | I24: 2019 | J24: 2020
C25: GDP growth | E25: =C4 -> 0.075 | F25: =E25 -> 0.075 | G25: =F25 -> 0.075 | H25: 0.075 | I25: 0.075 | J25: 0.075
C26: Elasticity of total power | E26: 0.9 | F26: =E26 -> 0.9 | G26: 0.9 | H26: 0.9 | I26: 0.9 | J26: 0.9
C27: Base share of coal | E27: 0.7911 | F27: =E27*F31 -> 0.7809 | G27: =F27*G31 -> 0.7607630262 | H27: =G27*H31 -> 0.73133647 | I27: =H27*I31 -> 0.6936186998 | J27: =I27*J31 -> 0.6489030461
C28: 2020 total displacement of coal from base share (absolute) due to RE and peakers and other | E28: ='Assumptions and Results'!G28 -> 0.051
C29: annual reduction | D29: absolute | E29: =E28/5 -> 0.0102
C30: Absolute reduction from base by year | E30: 0 | F30: =$E$29*(F24-2015) -> 0.0102 | G30: =$E$29*(G24-2015) -> 0.0204 | H30: =$E$29*(H24-2015) -> 0.0306 | I30: =$E$29*(I24-2015) -> 0.0408 | J30: =$E$29*(J24-2015) -> 0.051
C31: Normalized to 2015 | D31: Coal requirement per electricity | E31: 1 | F31: =($E27-F30)/$E27 -> 0.9871065605 | G31: =($E27-G30)/$E27 -> 0.974213121 | H31: =($E27-H30)/$E27 -> 0.9613196815 | I31: =($E27-I30)/$E27 -> 0.9484262419 | J31: =($E27-J30)/$E27 -> 0.9355328024

Sheet Calculations (hidden)
A1: Calculations | G1: This sheet contains calculation for the thermal coal based on capacity and demand
B3: Constants
B4: Conversion--> | C4: KW | D4: MJ/hr
C5: 1 | D5: 3.6 | M5: https://www.unitjuggler.com/convert-energy-from-kWh-to-MJ.html
B6: Hours in one year | D6: =24*365 -> 8760
B7: Total BU Power supply | D7: 1110.21 | M7: CEA Report March'13
B8: Total Thermal (BU) | D8: 878.3 | M8: CEA Report March'14
B9: Capacity Commissioned Mar'15 (GW) | D9: 164.6 | M9: CEA Report March'15
B10: Capacity Commissioned between March 15 and September 15 (GW) | D10: 5 | M10: CEA Report September'15
B11: Calculations | F11: Capacity Side
B12: Old Plants | C12: Efficiency | D12: MJ/KWH
B13: Sub-Critical | C13: ='Assumptions and Results'!C21 -> 0.31 | D13: =$D$5/C13 -> 11.61290323 | H13: 2015 | I13: 2020 | J13: Present plant
B14: Super Critical | C14: ='Assumptions and Results'!C22 -> 0.38 | D14: =$D$5/C14 -> 9.473684211 | G14: Electricity Capacity (GW) | H14: =D9 -> 164.6 | I14: ='Plants Breakdown'!G90+'Calculations '!D10 -> 115.18775 | K14: sub (GW) | L14: sup (GW)
B15: New Plants | G15: Of which | I15: =K16+L16+K20+L20 -> 71.075625 | J15: Domestic | K15: ='Plants Breakdown'!C83*(1-'Assumptions and Results'!G25) -> 103.6058125 | L15: ='Plants Breakdown'!D83 -> 16.835
B16: Sub Critical | C16: ='Assumptions and Results'!C24 -> 0.34 | D16: =$D$5/C16 -> 10.58823529 | G16: Subcritical | H16: =K15+K16 -> 132.3020625 | I16: =K19+K20 -> 50.273 | J16: Imported | K16: ='Plants Breakdown'!E83 -> 28.69625 | L16: ='Plants Breakdown'!F83 -> 9.985
B17: Super Critical | C17: ='Assumptions and Results'!C25 -> 0.385 | D17: =$D$5/C17 -> 9.350649351 | G17: Supercritical | H17: =L15+L16 -> 26.82 | I17: =L19+L20 -> 70.4089375 | J17: Future Plant
G18: PLF (from assumptions) | H18: =C31 -> 0.6446 | I18: =C31 -> 0.6446 | K18: sub (GW) | L18: sup (GW)
B19: Type of Coal | G19: Equivalent Capacity | H19: =H14*H18 -> 106.10116 | I19: =I18*I14 -> 74.25002365 | J19: Domestic | K19: ='Plants Breakdown'!C90+D10 -> 36.2571875 | L19: ='Plants Breakdown'!D90+(109.1-K15) -> 52.030375
B20: Old Plants | C20: Type/GCV | D20: Specific Coal Consumption(kg/KWH) | J20: Imported | K20: ='Plants Breakdown'!E90 -> 14.0158125 | L20: ='Plants Breakdown'!F90 -> 18.3785625
B21: Domestic Sub critical | C21: ='Assumptions and Results'!C32 -> G11 | D21: ='Coal Quality'!C10 -> 0.6454768568 | G21: Coal required (KG/hr) | H21: Coal Consumption of present plant in 2020
B22: Domestic Super Critical | C22: ='Assumptions and Results'!C33 -> G11 | D22: ='Coal Quality'!D10 -> 0.5265732253 | G22: Total Coal required (MT) | H22: =(D26*$C$31*(K15)*$D$6/1000)+(D27*$C$31*L15*$D$6/1000)+(D28*$C$31*K16*$D$6/1000)+(D29*$C$31*L16*$D$6/1000) -> 491.1783209 | I22: =(D26*$C$31*(K19+5)*$D$6/1000)+(D27*$C$31*L19*$D$6/1000)+(D28*$C$31*K20*$D$6/1000)+(D29*$C$31*L20*$D$6/1000) -> 368.388338
B23: Imported Coal Sub | C23: ='Assumptions and Results'!C37 -> 5500 | D23: ='Coal Quality'!K16 -> 0.5046455426 | G23: Coal after Leakage (MT) | H23: =H22/(1-H24) -> 511.6440843 | I23: =I22/(1-I24) -> 383.7378521 | K23: Import breakdown 2020 | L23: MT
B24: Imported Coal Super | C24: ='Assumptions and Results'!C37 -> 5500 | D24: ='Coal Quality'!N16 -> 0.4116845216 | G24: Loss/leakage | H24: 0.04 | I24: 0.04 | K24: 2014-15 Capacity import in future | L24: =((D28*$C$31*K16*$D$6/1000)+(D29*$C$31*L16*$D$6/1000)) -> 97.46731264
B25: New Plants | J25: CAGR | K25: Coal considering leakage | L25: =L24/(1-I24) -> 101.5284507
B26: Domestic Sub critical | C26: ='Assumptions and Results'!C35 -> G11 | D26: ='Coal Quality'!E10 -> 0.5885230165 | G26: Total Coal required(MT) | H26: =H23 -> 511.6440843 | I26: =I23+H23 -> 895.3819364 | J26: =((I26/H26) ^(1/5))-1 -> 0.1184281111 | K26: Projected plant import | L26: =(D28*$C$31*K20*$D$6/1000)+(D29*$C$31*L20*$D$6/1000) -> 78.58413826
B27: Domestic Super Critical | C27: ='Assumptions and Results'!C36 -> G11 | D27: ='Coal Quality'!F10 -> 0.519734612 | K27: Coal considering leakage | L27: =L26/(1-I24) -> 81.85847736
B28: Imported Coal Sub | C28: ='Assumptions and Results'!C37 -> 5500 | D28: ='Coal Quality'!K42 -> 0.4601179947 | H28: Domestic Coal | I28: =I26-L28 -> 711.9950084 | J28: =L28/I26 -> 0.2048141922 | K28: Total Import | L28: =L27+L25 -> 183.386928
B29: Imported Coal Super | C29: ='Assumptions and Results'!C37 -> 5500 | D29: ='Coal Quality'!N42 -> 0.4063379693
B31: PLF | C31: ='Assumptions and Results'!C28 -> 0.6446 | F31: Demand Side
B32: Thermal Share | C32: =(D8/D7)-'Assumptions and Results'!G28 -> 0.7401115915 | G32: BU Produced by Expected future capacity 2020 | I32: =M60 -> 681.4542138 | J32: Look Detailed Calculation Below
B33: Split, of capacity running on ( March'15)
B34: Domestic coal (GW) | C34: Imported coal (GW) | H34: 2015 | I34: 2020 | J34: =O60/M60 -> 0.2684277007 | K34: Percentage Share of future imported of total future
B35: 115.53 | C35: 49.1 | G35: Electricity Generation (BU) | H35: =D7 -> 1110.21 | I35: ='Power Demand Projections'!J7 -> 1555.352397 | J35: =(I36-H36)/I32 -> 0.400370755 | K35: % Difference Demand and supply in 2020
G36: Of which Thermal (BU) | H36: =D8 -> 878.3 | I36: =I35*I37 -> 1151.134338 | J36: ='Assumptions and Results'!G28 -> 0.051 | K36: % of old plants closing replaced by new super critical plants
G37: Ratio | H37: =C32 -> 0.7401115915 | I37: =H37 -> 0.7401115915
G39: PLF (from assumptions) | H39: ='Assumptions and Results'!C28 -> 0.6446 | I39: =H39 -> 0.6446
G40: Equivalent Capacity (GW) | H40: =(H36*1000)/($D$6*H39) -> 155.5422853
G42: Coal required (MT) | H42: =(D21*$H$39*B35*$D$6/1000)+(D23*$H$39*(C35-6)*$D$6/1000)+(D24*$H$39*6*$D$6/1000) -> 557.8499231
G43: Coal after Leakage (MT) | H43: =H42/(1-H44) -> 581.0936699 | I43: =I23*J35 -> 153.6374136
G44: Loss/leakage | H44: 0.04 | I44: 0.04 | J44: Total Imported | K44: =L25+(I43*J34) -> 142.7689883
J45: CAGR
G46: Total Coal required(MT) | H46: =H43 -> 581.0936699 | I46: =H43+I43 -> 734.7310834 | J46: =((I46/H46) ^(1/5))-1 -> 0.04803661026
I51: =D6 -> 8760
H52: Old | L52: New
H53: Domestic (MT) | J53: Imported | L53: Domestic (MT) | N53: Imported future (MT)
G54: ='Assumptions and Results'!C28 -> 0.6446
H55: Subcritical | I55: Supercritical | J55: Subcritical | K55: Supercritical | L55: Subcritical | M55: Supercritical | N55: Subcritical | O55: Supercritical
G56: Capacity | H56: =K15 -> 103.6058125 | I56: =L15 -> 16.835 | J56: =K16 -> 28.69625 | K56: =L16 -> 9.985 | L56: =K19 -> 36.2571875 | M56: =L19 -> 52.030375 | N56: =K20 -> 14.0158125 | O56: =L20 -> 18.3785625
G57: PLF | H57: =$G$54 -> 0.6446 | I57: 0.6446 | J57: 0.6446 | K57: 0.6446 | L57: 0.6446 | M57: 0.6446 | N57: 0.6446 | O57: 0.6446
G58: Unit generation | H58: =H56*H57*$I$51 -> 585030.527 | I58: 95062.12716 | J58: 162039.0001 | K58: 56382.25956 | L58: 204733.3156 | M58: 293799.7104 | N58: 79143.03238 | O58: 103778.1554
G59: total Unit generation | H59: =SUM(H58:O58) -> 1579968.128 | L59: Future | M59: =SUM(L58:O58) -> 681454.2138 | N59: Imported future | O59: =N58+O58 -> 182921.1877
G60: total Unit generation (BU) | H60: =H59/10^3 -> 1579.968128 | L60: total future Unit generation (BU) | M60: =M59/10^3 -> 681.4542138 | N60: Total Unit from imported (BU) | O60: =O59/10^3 -> 182.9211877

Sheet Plants Breakdown (hidden)
B1: Plants Breakdown
B2: Analysis of plants( Present and Projected for future) based on their location ( Coastal and non-coastal) and type ( Subcritical and supercritical) | L2: Source/ Discriptions
B4: Present Plants
C5: Subcritical (within 40 Km) | D5: Super critical (within 40 KM) | E5: Subcritical (Between 40km and 100 km) | F5: Super critical (Between 40km and 100 km) | G5: Subcritical (Between 100km and 500 km) | H5: Super critical (Between 100km and 500 km) | I5: Subcritical (Over 500 km) | J5: Super critical (Over 500 km)
B6: Andhra Pradesh | C6: 2.9 | D6: 0 | E6: 0.525 | F6: 0 | G6: 3.31 | H6: 2.26 | I6: 0 | J6: 0 | L6: Source: http://www.cea.nic.in/reports/quarterly/tpmii_quarterly_review/2016/tpmii_qr-01.pdf Page 7-8
B7: Gujarat | C7: 1.2 | D7: 7.3 | E7: 0.5 | F7: 0 | G7: 4.59 | H7: 0 | I7: 0 | J7: 0 | L7: Plants distance from coast is based on Google map or shortest possible distance
B8: Maharashtra | C8: 1.4 | D8: 0 | E8: 0 | F8: 0 | G8: 1.92 | H8: 0 | I8: 11.47 | J8: 3.96
B9: Odisha | C9: 0 | D9: 0 | E9: 0 | F9: 0 | G9: 11.485 | H9: 0 | I9: 0 | J9: 0
B10: Tamil Nadu | C10: 6.13 | D10: 0 | E10: 3.24 | F10: 0 | G10: 0.84 | H10: 0 | I10: 0 | J10: 0
B11: West Bengal | C11: 0 | D11: 0 | E11: 2.01 | F11: 0 | G11: 11.255 | H11: 0 | I11: 0 | J11: 0
B12: Karnataka | C12: 1.2 | D12: 0 | E12: 0 | F12: 0 | G12: 3.08 | H12: 0 | I12: 0 | J12: 0
B13: Total | C13: =SUM(C6:C12) -> 12.83 | D13: =SUM(D6:D12) -> 7.3 | E13: 6.275 | F13: 0 | G13: 36.48 | H13: 2.26 | I13: 11.47 | J13: 3.96
B14: Non- Costal
B15: Super critical | C15: 13.305
B16: Subcritical | C16: 70.72
B18: Projected Plants
B19: State | C19: Subcritical (within 40 Km) (GW) | D19: Super critical (within 40 KM) (GW) | E19: Subcritical (Between 40km and 100 km) (GW) | F19: Super critical (Between 40km and 100 km)(GW) | G19: Subcritical (Between 100km and 500 km)(GW) | H19: Super critical (Between 100km and 500 km)(GW) | I19: Subcritical (Over 500 km) (GW) | J19: Super critical (Over 500 km) (GW)
B20: Andhra Pradesh | C20: 2.99 | D20: 7.54 | F20: 1.6 | G20: 1.702 | H20: 0.8 | L20: Brookings Research on power capacities expected by 2020 (IndiaInframonitor database)
B21: Gujarat | C21: 1.961 | D21: 2.78 | E21: 0.03 | G21: 0.1 | L21: Plants distance from coast is based on Google map or shortest possible distance
B22: Maharashtra | C22: 0.055 | D22: 2.52 | E22: 0.388 | G22: 3.31 | H22: 1.32 | I22: 4.655 | J22: 3.3
B23: Odisha | C23: 0.06 | D23: 5.893 | F23: 1.32 | G23: 4.685 | H23: 3.96
B24: Tamil Nadu | C24: 4.723 | E24: 2.925 | F24: 0.6
B25: West Bengal | C25: 0.6 | E25: 0.45 | G25: 1.63 | H25: 1.82
B26: Karnataka | C26: 1.2 | G26: 0.5 | H26: 0.7 | J26: 4
B27: Total | C27: =SUM(C20:C26) -> 11.589 | D27: 18.733 | E27: 3.793 | F27: 3.52 | G27: 11.927 | H27: 8.6 | I27: 4.655 | J27: 7.3
B28: Projected plants After Applying 25% Slippage | L28: Slippage is applied based on our Analysis Power capacity projection
C29: Subcritical (within 40 Km) (GW) | D29: Super critical (within 40 KM) (GW) | E29: Subcritical (Between 40km and 100 km) (GW) | F29: Super critical (Between 40km and 100 km)(GW) | G29: Subcritical (Between 100km and 500 km)(GW) | H29: Super critical (Between 100km and 500 km)(GW) | I29: Subcritical (Over 500 km) (GW) | J29: Super critical (Over 500 km) (GW)
B30: Andhra Pradesh | C30: =C20*$G$74 -> 2.2425 | D30: 5.655 | E30: 0 | F30: 1.2 | G30: 1.2765 | H30: 0.6 | I30: 0 | J30: 0
B31: Gujarat | C31: 1.47075 | D31: 2.085 | E31: 0.0225 | F31: 0 | G31: 0.075 | H31: 0 | I31: 0 | J31: 0
B32: Maharashtra | C32: 0.04125 | D32: 1.89 | E32: 0.291 | F32: 0 | G32: 2.4825 | H32: 0.99 | I32: 3.49125 | J32: 2.475
B33: Odisha | C33: 0.045 | D33: 4.41975 | E33: 0 | F33: 0.99 | G33: 3.51375 | H33: 2.97 | I33: 0 | J33: 0
B34: Tamil Nadu | C34: =C24*$G$74 -> 3.54225 | E34: =E24*$G$74 -> 2.19375 | F34: 0.45 | G34: 0 | H34: 0 | I34: 0 | J34: 0
B35: West Bengal | C35: =C25*$G$74 -> 0.45 | E35: 0.3375 | F35: 0 | G35: 1.2225 | H35: 1.365 | I35: 0 | J35: 0
B36: Karnataka | C36: =C26*$G$74 -> 0.9 | D36: =D26*$G$74 -> 0 | E36: 0 | F36: 0 | G36: 0.375 | H36: 0.525 | I36: 0 | J36: 3
B37: Total | C37: =SUM(C30:C36) -> 8.69175 | D37: 14.04975 | E37: 2.84475 | F37: 2.64 | G37: 8.94525 | H37: 6.45 | I37: 3.49125 | J37: 5.475
B38: Percentage imports (Import Analysis sheet)
C39: Subcritical (within 40 Km) (GW) | D39: Super critical (within 40 KM) (GW) | E39: Subcritical (Between 40km and 100 km) (GW) | F39: Super critical (Between 40km and 100 km)(GW) | G39: Subcritical (Between 100km and 500 km)(GW) | H39: Super critical (Between 100km and 500 km)(GW) | I39: Subcritical (Over 500 km) (GW) | J39: Super critical (Over 500 km) (GW) | L39: Data From Import Analysis
B40: Andhra Pradesh | C40: ='Import analysis'!C57 -> 1 | D40: ='Import analysis'!D57 -> 1 | E40: ='Import analysis'!E57 -> 1 | F40: ='Import analysis'!F57 -> 1 | G40: ='Import analysis'!G57 -> 0.5 | H40: ='Import analysis'!H57 -> 0.75 | I40: ='Import analysis'!I57 -> 0 | J40: ='Import analysis'!J57 -> 0
B41: Gujarat | C41: ='Import analysis'!C58 -> 1 | D41: ='Import analysis'!D58 -> 1 | E41: ='Import analysis'!E58 -> 1 | F41: ='Import analysis'!F58 -> 1 | G41: ='Import analysis'!G58 -> 0.75 | H41: ='Import analysis'!H58 -> 1 | I41: ='Import analysis'!I58 -> 0 | J41: ='Import analysis'!J58 -> 0
B42: Maharashtra | C42: ='Import analysis'!C59 -> 1 | D42: ='Import analysis'!D59 -> 1 | E42: ='Import analysis'!E59 -> 0.5 | F42: ='Import analysis'!F59 -> 0.75 | G42: ='Import analysis'!G59 -> 0.5 | H42: ='Import analysis'!H59 -> 0.75 | I42: ='Import analysis'!I59 -> 0 | J42: ='Import analysis'!J59 -> 0.25
B43: Odisha | C43: ='Import analysis'!C60 -> 0.75 | D43: ='Import analysis'!D60 -> 0.75 | E43: ='Import analysis'!E60 -> 0.5 | F43: ='Import analysis'!F60 -> 0.5 | G43: ='Import analysis'!G60 -> 0.25 | H43: ='Import analysis'!H60 -> 0.25 | I43: ='Import analysis'!I60 -> 0 | J43: ='Import analysis'!J60 -> 0.25
B44: Tamil Nadu | C44: ='Import analysis'!C61 -> 1 | D44: ='Import analysis'!D61 -> 1 | E44: ='Import analysis'!E61 -> 1 | F44: ='Import analysis'!F61 -> 1 | G44: ='Import analysis'!G61 -> 0.75 | H44: ='Import analysis'!H61 -> 0.75 | I44: ='Import analysis'!I61 -> 0 | J44: ='Import analysis'!J61 -> 0
B45: West Bengal | C45: ='Import analysis'!C62 -> 0.75 | D45: ='Import analysis'!D62 -> 0.75 | E45: ='Import analysis'!E62 -> 0.25 | F45: ='Import analysis'!F62 -> 0.25 | G45: ='Import analysis'!G62 -> 0 | H45: ='Import analysis'!H62 -> 0.25 | I45: ='Import analysis'!I62 -> 0 | J45: ='Import analysis'!J62 -> 0
B46: Karnataka | C46: ='Import analysis'!C63 -> 1 | D46: ='Import analysis'!D63 -> 1 | E46: ='Import analysis'!E63 -> 0 | F46: ='Import analysis'!F63 -> 0 | G46: ='Import analysis'!G63 -> 0.5 | H46: ='Import analysis'!H63 -> 0.75 | I46: ='Import analysis'!I63 -> 0 | J46: ='Import analysis'!J63 -> 0
B48: Import Based capacity Present
C49: Subcritical (within 40 Km) | D49: Super critical (within 40 KM) | E49: Subcritical (Between 40km and 100 km) | F49: Super critical (Between 40km and 100 km) | G49: Subcritical (Between 100km and 500 km) | H49: Super critical (Between 100km and 500 km) | I49: Subcritical (Over 500 km) | J49: Super critical (Over 500 km)
B50: Andhra Pradesh | C50: =C6*C40 -> 2.9 | D50: 0 | E50: 0.525 | F50: 0 | G50: 1.655 | H50: 1.695 | I50: 0 | J50: 0
B51: Gujarat | C51: 1.2 | D51: 7.3 | E51: 0.5 | F51: 0 | G51: 3.4425 | H51: 0 | I51: 0 | J51: 0
B52: Maharashtra | C52: 1.4 | D52: 0 | E52: 0 | F52: 0 | G52: 0.96 | H52: 0 | I52: 0 | J52: 0.99
B53: Odisha | C53: 0 | D53: 0 | E53: 0 | F53: 0 | G53: 2.87125 | H53: 0 | I53: 0 | J53: 0
B54: Tamil Nadu | C54: 6.13 | D54: 0 | E54: 3.24 | F54: 0 | G54: 0.63 | H54: 0 | I54: 0 | J54: 0
B55: West Bengal | C55: 0 | D55: 0 | E55: 0.5025 | F55: 0 | G55: 0 | H55: 0 | I55: 0 | J55: 0
B56: Karnataka | C56: 1.2 | D56: 0 | E56: 0 | F56: 0 | G56: 1.54 | H56: 0 | I56: 0 | J56: 0
B57: Total | C57: =SUM(C50:C56) -> 12.83 | D57: =SUM(D50:D56) -> 7.3 | E57: 4.7675 | F57: 0 | G57: 11.09875 | H57: 1.695 | I57: 0 | J57: 0.99
B59: Import Based capacity Projected
C60: Subcritical (within 40 Km) | D60: Super critical (within 40 KM) | E60: Subcritical (Between 40km and 100 km) | F60: Super critical (Between 40km and 100 km) | G60: Subcritical (Between 100km and 500 km) | H60: Super critical (Between 100km and 500 km) | I60: Subcritical (Over 500 km) | J60: Super critical (Over 500 km)
B61: Andhra Pradesh | C61: =C30*C40 -> 2.2425 | D61: 5.655 | E61: 0 | F61: 1.2 | G61: 0.63825 | H61: 0.45 | I61: 0 | J61: 0
B62: Gujarat | C62: 1.47075 | D62: 2.085 | E62: 0.0225 | F62: 0 | G62: 0.05625 | H62: 0 | I62: 0 | J62: 0
B63: Maharashtra | C63: 0.04125 | D63: 1.89 | E63: 0.1455 | F63: 0 | G63: 1.24125 | H63: 0.7425 | I63: 0 | J63: 0.61875
B64: Odisha | C64: 0.03375 | D64: 3.3148125 | E64: 0 | F64: 0.495 | G64: 0.8784375 | H64: 0.7425 | I64: 0 | J64: 0
B65: Tamil Nadu | C65: 3.54225 | D65: 0 | E65: 2.19375 | F65: 0.45 | G65: 0 | H65: 0 | I65: 0 | J65: 0
B66: West Bengal | C66: 0.3375 | D66: 0 | E66: 0.084375 | F66: 0 | G66: 0 | H66: 0.34125 | I66: 0 | J66: 0
B67: Karnataka | C67: 0.9 | D67: 0 | E67: 0 | F67: 0 | G67: 0.1875 | H67: 0.39375 | I67: 0 | J67: 0
B68: Total | C68: =SUM(C61:C67) -> 8.568 | D68: 12.9448125 | E68: 2.446125 | F68: 2.145 | G68: 3.0016875 | H68: 2.67 | I68: 0 | J68: 0.61875
B70: Total GW | C70: Present | D70: Projected | E70: Non-Coastal | F70: Present | G70: Projected | H70: Projected (After slippage)
B71: Total Coastal Capacity | E71: Supercritical | F71: 13.3 | G71: 28.4 | H71: =G71*$G$74 -> 21.3
B72: Supercritical | C72: =D13+F13+H13+J13 -> 13.52 | D72: =D37+F37+H37+J37 -> 28.61475 | E72: Subcritical | F72: 70.7 | G72: 48.4 | H72: =G72*$G$74 -> 36.3
B73: Subcritical | C73: =C13+E13+G13+I13 -> 67.055 | D73: =C37+E37+G37+I37 -> 23.973
B74: Imports only Coastal Capacity | F74: 1- Slippage | G74: =1-'Assumptions and Results'!G31 -> 0.75
B75: Supercritical | C75: =D57+F57+H57+J57 -> 9.985 | D75: =D68+F68+H68+J68 -> 18.3785625
B76: Subcritical | C76: =C57+E57+G57+I57 -> 28.69625 | D76: =C68+E68+G68+I68 -> 14.0158125
B78: Remaining Capacity Calculation
B79: Present | C79: Domestic | E79: Imports | G79: Total
C80: Sub | D80: Super | E80: Sub | F80: Super
B81: Coastal | C81: =C73-C76 -> 38.35875 | D81: =C72-C75 -> 3.535 | E81: =C76 -> 28.69625 | F81: =C75 -> 9.985 | G81: =SUM(C81:F81) -> 80.575
B82: Non Coastal | C82: =F72 -> 70.7 | D82: =F71 -> 13.3 | E82: 0 | F82: 0 | G82: =SUM(C82:F82) -> 84
B83: Grand Total | C83: =C81+C82 -> 109.05875 | D83: =D81+D82 -> 16.835 | E83: =E81+E82 -> 28.69625 | F83: =F81+F82 -> 9.985 | G83: =SUM(C83:F83) -> 164.575
B85: Remaining Capacity Calculation
B86: Projected | C86: Domestic | E86: Imports | G86: Total
C87: Sub | D87: Super | E87: Sub | F87: Super
B88: Coastal | C88: =D73-D76 -> 9.9571875 | D88: =D72-D75 -> 10.2361875 | E88: =D76 -> 14.0158125 | F88: =D75 -> 18.3785625 | G88: =SUM(C88:F88) -> 52.58775
B89: Non Coastal | C89: =H71 -> 21.3 | D89: =H72 -> 36.3 | E89: 0 | F89: 0 | G89: =SUM(C89:F89) -> 57.6
B90: Grand Total | C90: =C88+C89 -> 31.2571875 | D90: =D88+D89 -> 46.5361875 | E90: =E88+E89 -> 14.0158125 | F90: =F88+F89 -> 18.3785625 | G90: =SUM(C90:F90) -> 110.18775

Sheet Import analysis (hidden)
B2: Import Analysis
C3: This sheet contains weightage mechanism to identify what share of the plants in coastal states can probably import coal
E4: Mudra | G4: Dahej | I4: Krishnapatnam port | K4: Visakhapatnam port | M4: Paradeep | O4: Gangavaram port | Q4: New manglore | S4: Dhamra port | U4: Kamarajar (Ennore) port | W4: Mumbai port | Y4: Tuticorin (VOC) port | AA4: Haldia Dock System | AC4: Hazira port | AE4: Goplapur | AG4: Meghavaram port | AI4: Sikka Port | AK4: Jafrabad Port | AM4: Dharamtar port | AO4: Jaigarh port | AQ4: Dabhol port | AS4: Nagapattinam port | AU4: Cuddalore port
E5: 0.1356134092 | G5: 0.08396969072 | I5: 0.05880237049 | K5: 0.05554146888 | M5: 0.05591886075 | O5: 0.04983931362 | Q5: 0.03996815756 | S5: 0.03966152667 | U5: 0.03768611611 | W5: 0.03219034702 | Y5: 0.03058643158 | AA5: 0.02274375682 | AC5: 0.01009523248 | AW5: Coal Provisional Report 2014-15
D7: Plants | E7: Km | F7: Plants | G7: Km | H7: Plants | I7: Km | J7: Plants | K7: Km | L7: Plants | M7: Km | N7: Plants | O7: Km | P7: Plants | Q7: Km | R7: Plants | S7: Km | T7: Plants | U7: Km | V7: Plants | W7: Km | X7: Plants | Y7: Km | Z7: Plants | AA7: Km | AB7: Plants | AC7: Km | AF7: plants | AG7: Km | AH7: Plants | AI7: Km | AJ7: Plants | AK7: Km | AL7: Plants | AM7: Km | AN7: Plants | AO7: Km | AP7: Plants | AQ7: Km | AR7: Plants | AS7: Km | AT7: Plants | AU7: Km
B8: Andhra Pradesh
C9: 40 | H9: 9 | I9: 15.9 | J9: 3 | K9: 19.8 | AF9: 1 | AG9: 10
C10: 40-100 | H10: 1 | I10: 71
C11: 100-500 | H11: 2 | I11: 321.5 | J11: 1 | K11: 230
C12: 500+ | H12: 0 | I12: 0
B13: Gujrat
C14: 40 | D14: 3 | E14: 28.67 | F14: 1 | G14: 4.2 | AB14: 1 | AC14: 15 | AH14: 3 | AI14: 23.73 | AJ14: 1 | AK14: 125
C15: 40-100 | F15: 1 | G15: 47 | AB15: 1 | AC15: 75
C16: 100-500 | D16: 1 | E16: 167
C17: 500+
B18: Karnataka
C19: 40 | P19: 1 | Q19: 25
C20: 40-100
C21: 100-500
C22: 500+ | P22: 4 | Q22: 493
B23: Maharastra
C24: 40 | V24: 1 | W24: 32 | AL24: 1 | AM24: 1.9 | AN24: 1 | AO24: 2.5
C25: 40-100 | AL25: 1 | AM25: 67.6
C26: 100-500 | V26: 3 | W26: 302 | AB26: 1 | AC26: 275 | AP26: 1 | AQ26: 384
C27: 500+ | V27: 6 | W27: 822.83 | AL27: 6 | AM27: 805.33
B28: Odisha
C29: 40 | L29: 1 | M29: 26.6
C30: 40-100 | L30: 2 | M30: 94 | R30: 1 | S30: 84.2
C31: 100-500 | L31: 8 | M31: 214.13
C32: 500+ | AD32: 2 | AE32: 414
B33: Tamilnadu
C34: 40 | T34: 4 | U34: 13.125 | X34: 4 | Y34: 22.55 | AR34: 3 | AS34: 25.5 | AT34: 1 | AU34: 30
C35: 40-100 | T35: 4 | U35: 46.05 | X35: 2 | Y35: 62.1 | AR35: 1 | AS35: 66 | AT35: 1 | AU35: 45
C36: 100-500 | AT36: 1 | AU36: 260
C37: 500+
B38: West Bengal
C39: 40 | Z39: 1 | AA39: 13.6
C40: 40-100 | Z40: 1 | AA40: 73.2
C41: 100-500 | Z41: 5 | AA41: 307.8
C42: 500+
C45: 40 | E45: 40-100 | G45: 100-500 | I45: 500+ | M45: 0.25 | N45: Weightage
M46: 4 | N46: if the plant have a specific port, very close to port, In close proximity with high share port <100 km
C47: Sub | D47: Super | E47: Sub | F47: Super | G47: Sub | H47: Super | I47: Sub | J47: Super | M47: 3 | N47: close to high share port but distance over 100 km
B48: Andhra Pradesh | C48: 4 | D48: 4 | E48: 4 | F48: 4 | G48: 2 | H48: 3 | M48: 2 | N48: close to high share port but distance over 500 km or in states away from mines
B49: Gujrat | C49: 4 | D49: 4 | E49: 4 | F49: 4 | G49: 3 | H49: 4 | M49: 1 | N49: 100-500km from a low shared port and closer to mining states (west Bengal, Bihar, Orissa)
B50: Karnataka | C50: 4 | D50: 4 | G50: 2 | H50: 3 | M50: 0 | N50: Far distant from port and possibly closure to port
B51: Maharashtra | C51: 4 | D51: 4 | E51: 2 | F51: =2+1 -> 3 | G51: 2 | H51: 3 | I51: 0 | J51: 1 | M51: +1 | N51: For Super critical plant
B52: Odisha | C52: 3 | D52: 3 | E52: 2 | F52: 2 | G52: 1 | H52: 1 | I52: 0 | J52: 1 | M52: -1 | N52: For states with plants close to mine (Odisha, west Bengal)
B53: Tamil nadu | C53: 4 | D53: 4 | E53: 4 | F53: 4 | G53: 3 | H53: 3
B54: West Bengal | C54: 3 | D54: 3 | E54: 1 | F54: 1 | G54: 0 | H54: 1
C56: Subcortical (within 40 Km) (GW) | D56: Super critical (within 40 KM) (GW) | E56: subcortical (Between 40km and 100 km) (GW) | F56: Super critical (Between 40km and 100 km)(GW) | G56: subcritical (Between 100km and 500 km)(GW) | H56: Super critical (Between 100km and 500 km)(GW) | I56: subcritical (Over 500 km) (GW) | J56: Super critical (Over 500 km) (GW) | P56: Sub | Q56: Super
B57: Andhra Pradesh | C57: =$M$45*C48 -> 1 | D57: 1 | E57: 1 | F57: 1 | G57: 0.5 | H57: 0.75 | I57: 0 | J57: 0 | L57: Imported (GW) | P57: 30.34548432 | Q57: 20
B58: Gujarat | C58: 1 | D58: 1 | E58: 1 | F58: 1 | G58: 0.75 | H58: 1 | I58: 0 | J58: 0 | L58: Domestic (GW) | P58: 107.4545157 | Q58: 6.8
B59: Maharashtra | C59: =$M$45*C51 -> 1 | D59: 1 | E59: 0.5 | F59: 0.75 | G59: 0.5 | H59: 0.75 | I59: 0 | J59: 0.25
B60: Odisha | C60: 0.75 | D60: 0.75 | E60: 0.5 | F60: 0.5 | G60: 0.25 | H60: 0.25 | I60: 0 | J60: 0.25 | L60: Coastal (GW) | P60: 67.055 | Q60: 13.52
B61: Tamil Nadu | C61: 1 | D61: 1 | E61: 1 | F61: 1 | G61: 0.75 | H61: 0.75 | I61: 0 | J61: 0 | L61: Non-coastal (GW) | P61: 70.72 | Q61: 13.305
B62: West Bengal | C62: 0.75 | D62: 0.75 | E62: 0.25 | F62: 0.25 | G62: 0 | H62: 0.25 | I62: 0 | J62: 0
B63: Karnataka | C63: =$M$45*C50 -> 1 | D63: 1 | E63: 0 | F63: 0 | G63: 0.5 | H63: 0.75 | I63: 0 | J63: 0

Sheet Power Capacity Projections (hidden)
A1: Projections for Power Plants till 2020
C2: This sheet contains breakdown for projected plants based on the stage towards commissioning and likely scenario of them coming online
H3: Sources:
E4: Legend | H4: Brookings Research on power capacities expected by 2020 (IndiaInframonitor database)
E5: 1 | F5: Yes
E6: 0 | F6: No
C8: Methodology | D8: Weightage | E8: Project Status | P8: Linked from sheet: Plants Breakdown
C9: Environmental Clearance | D9: 0.35 | E9: 1 | F9: 1 | G9: 1 | H9: 1 | I9: 1 | J9: 0 | K9: 0 | L9: 0 | M9: 0 | N9: Total | Q9: ='Plants Breakdown'!C86 -> Domestic | S9: ='Plants Breakdown'!E86 -> Imports | U9: ='Plants Breakdown'!G86 -> Total
C10: Land Acquisition | D10: 0.3 | E10: 1 | F10: 1 | G10: 1 | H10: 0 | I10: 0 | J10: 1 | K10: 1 | L10: 0 | M10: 0 | Q10: ='Plants Breakdown'!C87 -> Sub | R10: ='Plants Breakdown'!D87 -> Super | S10: ='Plants Breakdown'!E87 -> Sub | T10: ='Plants Breakdown'!F87 -> Super
C11: Financial Closure | D11: 0.25 | E11: 1 | F11: 1 | G11: 0 | H11: 1 | I11: 0 | J11: 1 | K11: 0 | L11: 1 | M11: 0 | P11: ='Plants Breakdown'!B88 -> Coastal | Q11: ='Plants Breakdown'!C88 -> 9.9571875 | R11: ='Plants Breakdown'!D88 -> 10.2361875 | S11: ='Plants Breakdown'!E88 -> 14.0158125 | T11: ='Plants Breakdown'!F88 -> 18.3785625 | U11: ='Plants Breakdown'!G88 -> 52.58775
C12: Exogenous supporting variables | D12: 0.1 | E12: 1 | F12: 0 | G12: 0 | H12: 0 | I12: 0 | J12: 0 | K12: 0 | L12: 0 | M12: 1 | P12: ='Plants Breakdown'!B89 -> Non Coastal | Q12: ='Plants Breakdown'!C89 -> 21.3 | R12: ='Plants Breakdown'!D89 -> 36.3 | S12: ='Plants Breakdown'!E89 -> 0 | T12: ='Plants Breakdown'!F89 -> 0 | U12: ='Plants Breakdown'!G89 -> 57.6
C13: 1-Slippage % | D13: =SUM(D9:D12) -> 1 | E13: =$D$9*E9+$D$10*E10+$D$11*E11+$D$12*E12 -> 1 | F13: =$D$9*F9+$D$10*F10+$D$11*F11+$D$12*F12 -> 0.9 | G13: 0.65 | H13: 0.6 | I13: 0.35 | J13: 0.55 | K13: 0.3 | L13: 0.25 | M13: 0.1 | N13: =N18/N15 -> 0.7486895834 | P13: ='Plants Breakdown'!B90 -> Grand Total | Q13: ='Plants Breakdown'!C90 -> 31.2571875 | R13: ='Plants Breakdown'!D90 -> 46.5361875 | S13: ='Plants Breakdown'!E90 -> 14.0158125 | T13: ='Plants Breakdown'!F90 -> 18.3785625 | U13: ='Plants Breakdown'!G90 -> 110.18775
C14: Slippage | E14: =$D$13-E13 -> 0 | F14: =$D$13-F13 -> 0.1 | G14: 0.35 | H14: 0.4 | I14: 0.65 | J14: 0.45 | K14: 0.7 | L14: 0.75 | M14: 0.9 | N14: =N19/N15 -> 0.2513104166
C15: Total | F15: 89.873 | G15: 14.02 | H15: 20.29 | I15: 4.59 | J15: 7.185 | K15: 4.86 | L15: 1.4 | M15: 4.72 | N15: =SUM(F15:M15) -> 146.938 | P15: Linked from sheet: Plants Breakdown
C16: Private | F16: 57.47 | G16: 5.34 | H16: 11.77 | I16: 4.59 | J16: 5.87 | K16: 4.86 | L16: 1.4 | M16: 3.12 | N16: =SUM(F16:M16) -> 94.42 | Q16: Domestic | S16: Imports | U16: Total
C17: Public | F17: =F15-F16 -> 32.403 | G17: 8.68 | H17: 8.52 | J17: 1.32 | M17: 1.6 | N17: =SUM(F17:M17) -> 52.523 | Q17: Sub | R17: Super | S17: Sub | T17: Super | U17: 0
C18: Possible Online | F18: =F13*F15 -> 80.8857 | G18: =G13*G15 -> 9.113 | H18: 12.174 | I18: 1.6065 | J18: 3.95175 | K18: 1.458 | L18: 0.35 | M18: 0.472 | N18: =SUM(F18:M18) -> 110.01095 | P18: Coastal | Q18: ='Plants Breakdown'!C81 -> 38.35875 | R18: ='Plants Breakdown'!D81 -> 3.535 | S18: ='Plants Breakdown'!E81 -> 28.69625 | T18: ='Plants Breakdown'!F81 -> 9.985 | U18: =SUM(Q18:T18) -> 80.575
C19: Probable slippage | F19: =F15-F18 -> 8.9873 | G19: =G15-G18 -> 4.907 | H19: 8.116 | I19: 2.9835 | J19: 3.23325 | K19: 3.402 | L19: 1.05 | M19: 4.248 | N19: =SUM(F19:M19) -> 36.92705 | P19: Non Coastal | Q19: ='Plants Breakdown'!C82 -> 70.7 | R19: ='Plants Breakdown'!D82 -> 13.3 | S19: ='Plants Breakdown'!E82 -> 0 | T19: ='Plants Breakdown'!F82 -> 0 | U19: =SUM(Q19:T19) -> 84
P20: Grand Total | Q20: ='Plants Breakdown'!C83 -> 109.05875 | R20: ='Plants Breakdown'!D83 -> 16.835 | S20: ='Plants Breakdown'!E83 -> 28.69625 | T20: ='Plants Breakdown'!F83 -> 9.985 | U20: =SUM(Q20:T20) -> 164.575
M21: Slippage | N21: =N19/N15 -> 0.2513104166
P22: Total 2020
Q23: Domestic | S23: Imports | U23: Total
Q24: Sub | R24: Super | S24: Sub | T24: Super | U24: 0
P25: Coastal | Q25: =Q11+Q18 -> 48.3159375 | R25: =R11+R18 -> 13.7711875 | S25: =S11+S18 -> 42.7120625 | T25: 28.3635625 | U25: 133.16275
P26: Non Coastal | Q26: =Q12+Q19 -> 92 | R26: =R12+R19 -> 49.6 | S26: 0 | T26: 0 | U26: 141.6
P27: Grand Total | Q27: =SUM(Q25:Q26) -> 140.3159375 | R27: =SUM(R25:R26) -> 63.3711875 | S27: =SUM(S25:S26) -> 42.7120625 | T27: =SUM(T25:T26) -> 28.3635625 | U27: =U25+U26 -> 274.76275

Sheet Coal Quality (hidden)
B1: Coal Quality and Total coal Consumption Analysis
E3: Coal requirement calculation based on ints GCV to compute total coal demand | Q3: Source
B4: GCV Values | K4: Kilocalorie | L4: Joules | M4: Mega Joules
C5: OLD Plants | F5: NEW PLANTS | K5: 1 | L5: 4184 | M5: =L5/1000000 -> 0.004184
B6: Function | C6: Grade of coal | D6: Values (upper/lower/avg) | F6: Grade of coal | G6: Values (upper/lower/avg) | K6: Linked Cells to Assumption and Result sheet | Q6: GCV Values | R6: https://www.coalindia.in/en-us/ourbusiness/productsservices.aspx
B7: Subcritical | C7: ='Assumptions and Results'!C32 -> G11 | D7: ='Assumptions and Results'!D32 -> 2 | E7: =VLOOKUP(D7,$I$7:$J$8,2,1) -> Lower | F7: ='Assumptions and Results'!C35 -> G11 | G7: ='Assumptions and Results'!D35 -> 2 | H7: =VLOOKUP(G7,$I$7:$J$8,2,1) -> Lower | I7: 1 | J7: Lower | L7: Old plants (Sub critical) | M7: Old plants (Supercritical) | N7: New Plants (sub critical ) | O7: New Plants (Super critical) | Q7: GCV range for Lignite | R7: www.dmg-raj.org/docs/vol%252024-1-2-c.doc+&cd=1&hl=en&ct=clnk&gl=in
B8: Supercritical | C8: ='Assumptions and Results'!C33 -> G11 | D8: ='Assumptions and Results'!D33 -> 2 | E8: =VLOOKUP(D8,I7:J8,2,1) -> Lower | F8: ='Assumptions and Results'!C36 -> G11 | G8: ='Assumptions and Results'!D36 -> 2 | H8: =VLOOKUP(G8,$I$7:$J$8,2,1) -> Lower | I8: 3 | J8: Average | K8: India specific system efficiency numbers Present | L8: ='Calculations '!C13 -> 0.31 | M8: ='Calculations '!C14 -> 0.38 | N8: ='Calculations '!C16 -> 0.34 | O8: ='Calculations '!C17 -> 0.385 | P8: Conversion | Q8: Calories to joules | R8: Google tables
B9: Output from this sheet | C9: Sub Critical (KG/KWH) actual old | D9: Super Critical (KG/KWH) actual old | E9: Sub Critical (KG/KWH) actual new | F9: Super Critical (KG/KWH) actual new | K9: Respective Total MJ/KWH after accounting for system eff. | L9: ='Calculations '!D13 -> 11.61290323 | M9: ='Calculations '!D14 -> 9.473684211 | N9: ='Calculations '!D16 -> 10.58823529 | O9: ='Calculations '!D17 -> 9.350649351 | Q9: KW to MJ/hr | R9: https://www.unitjuggler.com/convert-energy-from-kWh-to-MJ.html
B10: Specific Coal Consumption | C10: =VLOOKUP($C$7,$B$17:$N$34,IF($D$7=1,8,IF($D$7=2,9,IF($D$7=3,10,0))),0) -> 0.6454768568 | D10: =VLOOKUP($C$8,$B$17:$N$34,IF($D$8=1,11,IF($D$8=2,12,IF($D$8=3,13,0))),0) -> 0.5265732253 | E10: =VLOOKUP($F$7,$B$44:$N$61,IF($G$7=1,8,IF($G$7=2,9,IF($G$7=3,10,0))),0) -> 0.5885230165 | F10: =VLOOKUP($F$8,$B$43:$N$60,IF($G$8=1,11,IF($G$8=2,12,IF($G$8=3,13,0))),0) -> 0.519734612 | Q10: Import Coal GCV was taken from govt. assumption: ( Source: http://indiaenvironmentportal.org.in/files/India_Energy_Handbook.pdf)
B11: Specific coal Consumption (Sub Critical Plants ) | Q11: CSE report has average values for specific coal consumption of overall power plants (Page 32,33)
B12: Type of Coal | C12: Calorific Value (kcal/Kg) | F12: MJ Required (MJoules/Kg) | I12: Coal Required for Subcritical (Kg/kwh) | L12: Coal Required for Supercritical (Kg/kwh)
C13: Lower Bound (kcal/Kg) not including | D13: Upper Bound (kcal/Kg) including | E13: Average (kcal/Kg) | F13: Lower Bound (MJ/Kg) not including | G13: Upper Bound (MJ/Kg) including | H13: Average (MJ/Kg) | I13: (mj/kwh)/(mj/kg)=kg/kwh | J13: (mj/kwh)/(mj/kg)=kg/kwh | K13: (mj/kwh)/(mj/kg)=kg/kwh | L13: (mj/kwh)/(mj/kg)=kg/kwh | M13: (mj/kwh)/(mj/kg)=kg/kwh | N13: (mj/kwh)/(mj/kg)=kg/kwh
B14: Anthracite | C14: 7917 | D14: 7917 | E14: 7917 | F14: =C14*$M$5 -> 33.124728 | G14: 33.124728 | H14: 33.124728 | I14: =$L$9/F14 -> 0.3505810893 | J14: 0.3505810893 | K14: 0.3505810893 | L14: =$M$9/F14 -> 0.2860003623 | M14: 0.2860003623 | N14: 0.2860003623
B15: Bituminous | C15: 4792 | D15: 4792 | E15: 4792 | F15: 20.049728 | G15: 20.049728 | H15: 20.049728 | I15: 0.5792050259 | J15: 0.5792050259 | K15: 0.5792050259 | L15: 0.4725093632 | M15: 0.4725093632 | N15: 0.4725093632
B16: Imports | E16: ='Assumptions and Results'!C37 -> 5500 | H16: =E16*$M$5 -> 23.012 | K16: =$L$9/H16 -> 0.5046455426 | N16: =$M$9/H16 -> 0.4116845216 | Q16: For calrofic Value range of Lignite is below
B17: Lignite | C17: 1000 | D17: 3000 | E17: =(C17+D17)/2 -> 2000 | F17: =C17*$M$5 -> 4.184 | G17: =D17*$M$5 -> 12.552 | H17: 8.368 | I17: =$L$9/F17 -> 2.775550484 | J17: =$L$9/G17 -> 0.9251834947 | K17: 1.387775242 | L17: =$M$9/F17 -> 2.264264869 | M17: =$M$9/G17 -> 0.7547549562 | N17: 1.132132434 | Q17: www.dmg-raj.org/docs/vol%252024-1-2-c.doc+&cd=1&hl=en&ct=clnk&gl=in
B18: G1 | C18: =D19 -> 7000 | D18: =C18+300 -> 7300 | E18: =(C18+D18)/2 -> 7150 | F18: 29.288 | G18: 30.5432 | H18: 29.9156 | I18: 0.396507212 | J18: 0.3802123951 | K18: 0.3881888789 | L18: 0.3234664098 | M18: 0.3101732697 | N18: 0.3166804012
B19: G2 | C19: =D20 -> 6700 | D19: =C19+300 -> 7000 | E19: =(C19+D19)/2 -> 6850 | F19: 28.0328 | G19: 29.288 | H19: 28.6604 | I19: 0.4142612663 | J19: 0.396507212 | K19: 0.4051898517 | L19: 0.3379499804 | M19: 0.3234664098 | N19: 0.3305496159
B20: G3 | C20: =D21 -> 6400 | D20: 6700 | E20: =(C20+D20)/2 -> 6550 | F20: 26.7776 | G20: 28.0328 | H20: 27.4052 | I20: 0.4336797632 | J20: 0.4142612663 | K20: 0.4237481655 | L20: 0.3537913857 | M20: 0.3379499804 | N20: 0.3456892929
B21: G4 | C21: 6100 | D21: 6400 | E21: 6250 | F21: 25.5224 | G21: 26.7776 | H21: 26.15 | I21: 0.4550082761 | J21: 0.4336797632 | K21: 0.4440880775 | L21: 0.3711909621 | M21: 0.3537913857 | N21: 0.362282379
B22: G5 | C22: 5800 | D22: 6100 | E22: 5950 | F22: 24.2672 | G22: 25.5224 | H22: 24.8948 | I22: 0.4785431869 | J22: 0.4550082761 | K22: 0.466479073 | L22: 0.3903904946 | M22: 0.3711909621 | N22: 0.3805487174
B23: G6 | C23: 5500 | D23: 5800 | E23: 5650 | F23: 23.012 | G23: 24.2672 | H23: 23.6396 | I23: 0.5046455426 | J23: 0.4785431869 | K23: 0.4912478733 | L23: 0.4116845216 | M23: 0.3903904946 | N23: 0.400754844
B24: G7 | C24: 5200 | D24: 5500 | E24: 5350 | F24: 21.7568 | G24: 23.012 | H24: 22.3844 | I24: 0.5337597085 | J24: 0.5046455426 | K24: 0.518794483 | L24: 0.4354355517 | M24: 0.4116845216 | N24: 0.4232270783
B25: G8 | C25: 4900 | D25: 5200 | E25: 5050 | F25: 20.5016 | G25: 21.7568 | H25: 21.1292 | I25: 0.5664388743 | J25: 0.5337597085 | K25: 0.5496139573 | L25: 0.4620948712 | M25: 0.4354355517 | N25: 0.4483692809
B26: G9 | C26: 4600 | D26: 4900 | E26: 4750 | F26: 19.2464 | G26: 20.5016 | H26: 19.874 | I26: 0.60338054 | J26: 0.5664388743 | K26: 0.5843264177 | L26: 0.4922314932 | M26: 0.4620948712 | N26: 0.4766873408
B27: G10 | C27: 4300 | D27: 4600 | E27: 4450 | F27: 17.9912 | G27: 19.2464 | H27: 18.6188 | I27: 0.6454768568 | J27: 0.60338054 | K27: 0.6237192099 | L27: 0.5265732253 | M27: 0.4922314932 | N27: 0.508823566
B28: G11 | C28: 4000 | D28: 4300 | E28: 4150 | F28: 16.736 | G28: 17.9912 | H28: 17.3636 | I28: 0.693887621 | J28: 0.6454768568 | K28: 0.6688073456 | L28: 0.5660662172 | M28: 0.5265732253 | N28: 0.5456059925
B29: G12 | C29: 3700 | D29: 4000 | E29: 3850 | F29: 15.4808 | G29: 16.736 | H29: 16.1084 | I29: 0.7501487795 | J29: 0.693887621 | K29: 0.7209222037 | L29: 0.611963478 | M29: 0.5660662172 | N29: 0.5881207451
B30: G13 | C30: 3400 | D30: 3700 | E30: 3550 | F30: 14.2256 | G30: 15.4808 | H30: 14.8532 | I30: 0.8163383777 | J30: 0.7501487795 | K30: 0.7818452068 | L30: 0.6659602555 | M30: 0.611963478 | N30: 0.6378210898
B31: G14 | C31: 3100 | D31: 3400 | E31: 3250 | F31: 12.9704 | G31: 14.2256 | H31: 13.598 | I31: 0.8953388659 | J31: 0.8163383777 | K31: 0.8540155336 | L31: 0.7304080222 | M31: 0.6659602555 | N31: 0.6966968827
B32: G15 | C32: =D33 -> 2800 | D32: 3100 | E32: 2950 | F32: 11.7152 | G32: 12.9704 | H32: 12.3428 | I32: 0.9912680301 | J32: 0.8953388659 | K32: 0.9408645709 | L32: 0.8086660245 | M32: 0.7304080222 | N32: 0.7675474131
B33: G16 | C33: =D34 -> 2500 | D33: 2800 | E33: 2650 | F33: 10.46 | G33: 11.7152 | H33: 11.0876 | I33: 1.110220194 | J33: 0.9912680301 | K33: 1.047377541 | L33: 0.9057059475 | M33: 0.8086660245 | N33: 0.8544395731
B34: G17 | C34: 2200 | D34: =C34+300 -> 2500 | E34: 2350 | F34: 9.2048 | G34: 10.46 | H34: 9.8324 | I34: 1.261613856 | J34: 1.110220194 | K34: 1.181085312 | L34: 1.029211304 | M34: 0.9057059475 | N34: 0.9635169654
B37: Specific coal Consumption (Supercritical Critical Plants )
B38: Type of Coal | C38: Calorific Value (kcal/Kg) | F38: MJ Required (Joules/Kg) | I38: Coal Required for Subcritical (Kg/kwh) | L38: Coal Required for Supercritical (Kg/kwh) | O38: Source
C39: Lower Bound (kcal/Kg) not including | D39: Upper Bound (kcal/Kg) including | E39: Average (kcal/Kg) | F39: Lower Bound (MJ/Kg) not including | G39: Upper Bound (MJ/Kg) including | H39: Average (MJ/Kg) | I39: (mj/kwh)/(mj/kg)=kg/kwh | J39: (mj/kwh)/(mj/kg)=kg/kwh | K39: (mj/kwh)/(mj/kg)=kg/kwh | L39: (mj/kwh)/(mj/kg)=kg/kwh | M39: (mj/kwh)/(mj/kg)=kg/kwh | N39: (mj/kwh)/(mj/kg)=kg/kwh
B40: Anthracite | C40: 7917 | D40: 7917 | E40: 7917 | F40: =C40*$M$5 -> 33.124728 | G40: 33.124728 | H40: 33.124728 | I40: =$L$9/F40 -> 0.3505810893 | J40: 0.3505810893 | K40: 0.3505810893 | L40: =$M$9/F40 -> 0.2860003623 | M40: 0.2860003623 | N40: 0.2860003623
B41: Bituminous | C41: 4792 | D41: 4792 | E41: 4792 | F41: 20.049728 | G41: 20.049728 | H41: 20.049728 | I41: 0.5792050259 | J41: 0.5792050259 | K41: 0.5792050259 | L41: 0.4725093632 | M41: 0.4725093632 | N41: 0.4725093632
B42: Imports | E42: ='Assumptions and Results'!C37 -> 5500 | H42: =E42*$M$5 -> 23.012 | K42: =$N$9/H42 -> 0.4601179947 | N42: =$O$9/H42 -> 0.4063379693
B43: Lignite | C43: 1000 | D43: 3000 | E43: =(C43+D43)/2 -> 2000 | F43: =C43*$M$5 -> 4.184 | G43: =D43*$M$5 -> 12.552 | H43: 8.368 | I43: =$N$9/F43 -> 2.530648971 | J43: =$N$9/G43 -> 0.843549657 | K43: 1.265324485 | L43: =$O$9/F43 -> 2.234858831 | M43: =$O$9/G43 -> 0.7449529438 | N43: 1.117429416
B44: G1 | C44: =D45 -> 7000 | D44: =C44+300 -> 7300 | E44: =(C44+D44)/2 -> 7150 | F44: 29.288 | G44: 30.5432 | H44: 29.9156 | I44: 0.3615212816 | J44: 0.3466642426 | K44: 0.353936919 | L44: 0.3192655473 | M44: 0.3061450454 | N44: 0.3125676687
B45: G2 | C45: =D46 -> 6700 | D45: =C45+300 -> 7000 | E45: =(C45+D45)/2 -> 6850 | F45: 28.0328 | G45: 29.288 | H45: 28.6604 | I45: 0.3777088016 | J45: 0.3615212816 | K45: 0.369437806 | L45: 0.3335610196 | M45: 0.3192655473 | N45: 0.3262567637
B46: G3 | C46: =D47 -> 6400 | D46: 6700 | E46: =(C46+D46)/2 -> 6550 | F46: 26.7776 | G46: 28.0328 | H46: 27.4052 | I46: 0.3954139017 | J46: 0.3777088016 | K46: 0.3863586215 | L46: 0.3491966924 | M46: 0.3335610196 | N46: 0.3411998216
B47: G4 | C47: 6100 | D47: 6400 | E47: 6250 | F47: 25.5224 | G47: 26.7776 | H47: 26.15 | I47: 0.414860487 | J47: 0.3954139017 | K47: 0.4049038353 | L47: 0.3663703002 | M47: 0.3491966924 | N47: 0.357577413
B48: G5 | C48: 5800 | D48: 6100 | E48: 5950 | F48: 24.2672 | G48: 25.5224 | H48: 24.8948 | I48: 0.4363187881 | J48: 0.414860487 | K48: 0.4253191548 | L48: 0.3853204882 | M48: 0.3663703002 | N48: 0.3756065263
B49: G6 | C49: 5500 | D49: 5800 | E49: 5650 | F49: 23.012 | G49: 24.2672 | H49: 23.6396 | I49: 0.4601179947 | J49: 0.4363187881 | K49: 0.4479024727 | L49: 0.4063379693 | M49: 0.3853204882 | N49: 0.3955502356
B50: G7 | C50: 5200 | D50: 5500 | E50: 5350 | F50: 21.7568 | G50: 23.012 | H50: 22.3844 | I50: 0.4866632636 | J50: 0.4601179947 | K50: 0.4730184992 | L50: 0.4297805445 | M50: 0.4063379693 | N50: 0.4177306227
B51: G8 | C51: 4900 | D51: 5200 | E51: 5050 | F51: 20.5016 | G51: 21.7568 | H51: 21.1292 | I51: 0.5164589736 | J51: 0.4866632636 | K51: 0.5011186081 | L51: 0.4560936391 | M51: 0.4297805445 | N51: 0.4425463033
B52: G9 | C52: 4600 | D52: 4900 | E52: 4750 | F52: 19.2464 | G52: 20.5016 | H52: 19.874 | I52: 0.5501410806 | J52: 0.5164589736 | K52: 0.5327682044 | L52: 0.4858388764 | M52: 0.4560936391 | N52: 0.4704965961
B53: G10 | C53: 4300 | D53: 4600 | E53: 4450 | F53: 17.9912 | G53: 19.2464 | H53: 18.6188 | I53: 0.5885230165 | J53: 0.5501410806 | K53: 0.568685162 | L53: 0.519734612 | M53: 0.4858388764 | N53: 0.5022154677
B54: G11 | C54: 4000 | D54: 4300 | E54: 4150 | F54: 16.736 | G54: 17.9912 | H54: 17.3636 | I54: 0.6326622427 | J54: 0.5885230165 | K54: 0.6097949327 | L54: 0.5587147079 | M54: 0.519734612 | N54: 0.5385202003
B55: G12 | C55: 3700 | D55: 4000 | E55: 3850 | F55: 15.4808 | G55: 16.736 | H55: 16.1084 | I55: 0.6839591813 | J55: 0.6326622427 | K55: 0.657311421 | L55: 0.6040159004 | M55: 0.5587147079 | N55: 0.5804828134
B56: G13 | C56: 3400 | D56: 3700 | E56: 3550 | F56: 14.2256 | G56: 15.4808 | H56: 14.8532 | I56: 0.7443085208 | J56: 0.6839591813 | K56: 0.712858865 | L56: 0.657311421 | M56: 0.6040159004 | N56: 0.629537699
B57: G14 | C57: 3100 | D57: 3400 | E57: 3250 | F57: 12.9704 | G57: 14.2256 | H57: 13.598 | I57: 0.8163383777 | J57: 0.7443085208 | K57: 0.7786612218 | L57: 0.7209222037 | M57: 0.657311421 | N57: 0.6876488712
B58: G15 | C58: =D59 -> 2800 | D58: 3100 | E58: 2950 | F58: 11.7152 | G58: 12.9704 | H58: 12.3428 | I58: 0.9038032039 | J58: 0.8163383777 | K58: 0.8578471088 | L58: 0.7981638684 | M58: 0.7209222037 | N58: 0.7575792649
B59: G16 | C59: =D60 -> 2500 | D59: 2800 | E59: 2650 | F59: 10.46 | G59: 11.7152 | H59: 11.0876 | I59: 1.012259588 | J59: 0.9038032039 | K59: 0.9549618758 | L59: 0.8939435326 | M59: 0.7981638684 | N59: 0.8433429553
B60: G17 | C60: 2200 | D60: =C60+300 -> 2500 | E60: 2350 | F60: 9.2048 | G60: 10.46 | H60: 9.8324 | I60: 1.150294987 | J60: 1.012259588 | K60: 1.076871902 | L60: 1.015844923 | M60: 0.8939435326 | N60: 0.951003758

Sheet Efficiency Calculation (hidden)
B2: Efficiency Calculation
C3: This sheet show the analysis to identify Efficiency of current power plants
B5: Plant type (MW) | C5: Total Number | D5: Average age | E5: Design Efficiency | F5: Operating Efficiency | G5: % dev | H5: Comment (Outliers?)
B6: 500 MW | C6: 5 | D6: 14 | E6: 0.380711505 | F6: 0.3351145388 | G6: =1-F6/E6 -> 0.1197677653 | H6: None
B7: 250 MW | C7: 4/5 | D7: 8 | E7: 0.3731704766 | F7: 0.3197919982 | G7: =1-F7/E7 -> 0.1430404647 | H7: Age outlier (1)
B8: 250 MW | C8: 1 | D8: 3 | E8: 0.3761044528 | F8: 0.3224034496 | G8: =1-F8/E8 -> 0.1427821522 | H8: OUTLIER
B9: 210 MW (till 1989) | C9: 27 | D9: 24 | E9: 0.3615489677 | F9: 0.3104096696 | G9: =1-F9/E9 -> 0.1414450119 | H9: None
B10: 210 MW (from 1990-1999) | C10: 18 | D10: 14 | E10: 0.3673339179 | F10: 0.324750975 | G10: 0.1159243426 | H10: None
B11: 210 MW ( 2000+ ) | C11: 3/4 | D11: 2 | E11: 0.3722481375 | F11: 0.336634214 | G11: 0.09567253649 | H11: Age outlier (1)
B12: 210 MW 2000 | C12: 1 | D12: 8 | E12: 0.3684018852 | F12: 0.3196468401 | G12: 0.1323420074 | H12: Age Outlier (1)
B13: 195-200 MW | C13: 3/5 | D13: 28 | E13: 0.357972647 | F13: 0.3003551659 | G13: 0.1609549825 | H13: Age Outlier (1) + Operational Outlier (1)
B14: 140 MW | C14: 3/4 | D14: 38 | E14: 0.3591662537 | F14: 0.307442005 | G14: 0.1440119949 | H14: Age Outlier (1)
B15: 120-125 MW | C15: 7/9 | D15: 29 | E15: 0.3551651241 | F15: 0.2933448052 | G15: 0.174060781 | H15: Age outlier (1) + Operational Outlier (1)
B16: 100-110 MW (age 30+) | C16: 4/5 | D16: 33 | E16: 0.3503558283 | F16: 0.2872145265 | G16: 0.1802204979 | H16: Operational Outlier (1)
B17: 100-110 MW (age 20s) | C17: 3 | D17: 24 | E17: 0.3667191393 | F17: 0.3011976007 | G17: 0.1786695365 | H17: None
B21: =B5 -> Plant type (MW) | C21: Total Number | D21: Average age | E21: Design Efficiency | F21: Operating Efficiency | G21: % dev | H21: Comment (Outliers?) | I21: Weights (Age) | J21: Weights (deviation) | K21: Weights (Number)
B22: 500 MW | C22: 5 | D22: 14 | E22: 0.380711505 | F22: 0.3351145388 | G22: 0.1197677653 | H22: None | I22: =D22 -> 14 | J22: =1-G22 -> 0.8802322347 | K22: =C22 -> 5
B23: 250 MW | C23: 4/5 | D23: 8 | E23: 0.3731704766 | F23: 0.3197919982 | G23: 0.1430404647 | H23: Age outlier (1) | I23: =D23 -> 8 | J23: =1-G23 -> 0.8569595353 | K23: 4
B24: =B9 -> 210 MW (till 1989) | C24: 27 | D24: 24 | E24: 0.3615489677 | F24: 0.3104096696 | G24: 0.1414450119 | H24: None | I24: 24 | J24: 0.8585549881 | K24: =C24 -> 27
B25: 210 MW (from 1990-1999) | C25: 18 | D25: 14 | E25: 0.3673339179 | F25: 0.324750975 | G25: 0.1159243426 | H25: None | I25: 14 | J25: 0.8840756574 | K25: =C25 -> 18
B26: 210 MW ( 2000+ ) | C26: 3/4 | D26: 2 | E26: 0.3722481375 | F26: 0.336634214 | G26: 0.09567253649 | H26: Age outlier (1) | I26: 2 | J26: 0.9043274635 | K26: 3
B27: =B13 -> 195-200 MW | C27: 3/5 | D27: 28 | E27: 0.357972647 | F27: 0.3003551659 | G27: 0.1609549825 | H27: Age Outlier (1) + Operational Outlier (1) | I27: 28 | J27: 0.8390450175 | K27: 3
B28: 140 MW | C28: 3/4 | D28: 38 | E28: 0.3591662537 | F28: 0.307442005 | G28: 0.1440119949 | H28: Age Outlier (1) | I28: 38 | J28: 0.8559880051 | K28: 3
B29: 120-125 MW | C29: 7/9 | D29: 29 | E29: 0.3551651241 | F29: 0.2933448052 | G29: 0.174060781 | H29: Age outlier (1) + Operational Outlier (1) | I29: 29 | J29: 0.825939219 | K29: 7
B30: 100-110 MW (age 30+) | C30: 4/5 | D30: 33 | E30: 0.3503558283 | F30: 0.2872145265 | G30: 0.1802204979 | H30: Operational Outlier (1) | I30: 33 | J30: 0.8197795021 | K30: 4
B31: 100-110 MW (age 20s) | C31: 3 | D31: 24 | E31: 0.3667191393 | F31: 0.3011976007 | G31: 0.1786695365 | H31: None | I31: 24 | J31: 0.8213304635 | K31: =C31 -> 3
B32: Simple Average | F32: =AVERAGE(F22:F31) -> 0.3116255499 | I32: =SUMPRODUCT(F22:F31,I22:I31)/SUM(I22:I31) -> 0.304794933 | J32: =SUMPRODUCT(F22:F31,J22:J31)/SUM(J22:J31) -> 0.3121096714 | K32: =SUMPRODUCT(F22:F31,K22:K31)/SUM(K22:K31) -> 0.3132529612

Sheet Railway in cotext of coal (hidden)
B1: Railway 2014-15 at a glance
H2: Source:
B3: Total Number of Wagon | C3: 254006 | H3: Annual report Railways 2014-15
B4: BOX'N' Type | C4: 52351 | H4: Summary Report Railway 2014-15
B5: BOXNHA | C5: 2993 | D5: Specifically designed for coal transpiration; Have higher walls than BOX'N' type
B6: BOBR/N/HS | C6: 13572 | D6: Bogie open rapid discharge air brake wagon for coal
B7: Coal Dedicated corridors
B8: The Western DFC | C8: 1502 km | D8: Jawahar Lal nehru Port to Dadri for imported coal from Mumbai and Gujrat port
B9: The Eastern DFC | C9: 1840 km | D9: Ludhiana to Dankuni for coal and steel traffic
B11: Growth (%) in Infrastructure Industries (Base 2004-05=100)
B12: Sectors | C12: Weight | D12: 2010-11 | E12: 2011-12 | F12: 2012-13 | G12: 2013-14 | H12: 2014-15
B13: Coal | C13: 4.38 | D13: -0.2 | E13: 1.3 | F13: 4.6 | G13: 1.3 | H13: 8.5
B14: Steel | C14: 6.68 | D14: 13.2 | E14: 10.3 | F14: 4.1 | G14: 11.5 | H14: 4.2
B15: Cement | C15: 2.41 | D15: 4.5 | E15: 6.7 | F15: 7.7 | G15: 3.1 | H15: 5.6
B16: Total | C16: 37.9 | D16: 6.6 | E16: 5 | F16: 6.5 | G16: 4.2 | H16: 4.4
B18: Percentage of total availability (production plus imports) of select major commodities carried by the Indian Railways
C19: Coal | D19: Iron Ore | E19: Cement | F19: Food grains | G19: Fertilizers | H19: Pol Product
B21: 2014-15 (P) | C21: 0.6575 | D21: 0.7998 | E21: 0.4036 | F21: 0.2195 | G21: 0.8765 | H21: 0.1701
B25: Railway transpiration of coal | C25: Tonnes carried* (Millions) | E25: * Does not include transport from Konkan Railway
B26: Coal | C26: 2013-14 | D26: 2014-15 | E26: Absolute Variation over last year | F26: Percentage to total
B27: Steel Plants | C27: 50.01 | D27: 53.91 | E27: 3.9 | F27: 4.92
B28: Washeries | C28: 1.65 | D28: 0.99 | E28: -0.66 | F28: 0.09
B29: Thermal Plants | C29: 335.38 | D29: 367.29 | E29: 31.91 | F29: 33.53
B30: Other Usage | C30: 121.02 | D30: 123.62 | E30: 2.6 | F30: 11.29
B31: Total | C31: =SUM(C27:C30) -> 508.06 | D31: =SUM(D27:D30) -> 545.81 | E31: =SUM(E27:E30) -> 37.75 | F31: =SUM(F27:F30) -> 49.83
B33: Railway Tonnes Originating, Net Tonne Kms. and Earnings from Coal & total commodities in 2014-15
C34: Quantity ( MT) | D34: % Share | E34: Travelled Ton Kilometers (km) | F34: percentage | G34: Income (Cr) | H34: Revenue percentage
B35: Coal | C35: 545.81 | D35: 0.4983 | E35: 301519 | F35: 0.4423 | G35: 47937.51 | H35: 0.465
B36: Total | C36: 1095.26 | D36: 1 | E36: 681.696 | F36: 1 | G36: 103100.05 | H36: 1

Sheet Additional Information (hidden)
B1: Additional Information
D2: Other Relevant Information | M2: Source:
H3: Month | I3: PLF | J3: 12 months moving average | M3: CEA reports march'12 to March'15
B4: India total installed power capacity | H4: 2012-03-01 | I4: 75.24 | M4: India Installed Capacity : CEA reports March, April ( 2014, 2015, 2016)
C5: 2014 | D5: 2015 | E5: 2016 | H5: 2012-04-01 | I5: 74.45
B6: Thermal (GW) Coal | C6: 145.3 | D6: 164.6 | E6: 185.2 | H6: 2012-05-01 | I6: 72.24
B7: Thermal (GW) Gas | C7: 21.8 | D7: 23.1 | E7: 24.5 | H7: 2012-06-01 | I7: 66.96
B8: Thermal (GW) Diesel | C8: 1.2 | D8: 1.2 | E8: 1 | H8: 2012-07-01 | I8: 61.58
B9: Nuclear (GW) | C9: 4.8 | D9: 5.8 | E9: 5.8 | H9: 2012-08-01 | I9: 61.41
B10: Hydro (GW) | C10: 40.5 | D10: 41.3 | E10: 42.7 | H10: 2012-09-01 | I10: 71.04
B11: RE (GW) | C11: 29.5 | D11: 31.7 | E11: 38.8 | H11: 2012-10-01 | I11: 71.02
H12: 2012-11-01 | I12: 72.41
H13: 2012-12-01 | I13: 74.33
H14: 2013-01-01 | I14: 70.67
H15: 2013-02-01 | I15: 71.96
H16: 2013-03-01 | I16: 69.97 | J16: =SUM(I4:I15)/12 -> 70.27583333
H17: 2013-04-01 | I17: 71.55 | J17: =SUM(I5:I16)/12 -> 69.83666667
H18: 2013-05-01 | I18: 63.4 | J18: 69.595
H19: 2013-06-01 | I19: 60.86 | J19: 68.85833333
H20: 2013-07-01 | I20: 55.85 | J20: 68.35
H21: 2013-08-01 | I21: 64.6 | J21: 67.8725 | M21: Genrations breakdown
H22: 2013-09-01 | I22: 61.68 | J22: 68.13833333 | N22: 2015 | O22: 2020
H23: 2013-10-01 | I23: 65.62 | J23: 67.35833333 | N23: BU | O23: BU
H24: 2013-11-01 | I24: 68.99 | J24: 66.90833333 | M24: Thermal | N24: 878.321 | O24: 1222.6
H25: 2013-12-01 | I25: 69.82 | J25: 66.62333333 | M25: Hydro | N25: 129.111 | O25: 322.8 | P25: Rest combined calculated based on power demand
H26: 2014-01-01 | I26: 68.44 | J26: 66.2475 | M26: RE | N26: 61.78
H27: 2014-02-01 | I27: 66.58 | J27: 66.06166667 | M27: Nuclear | N27: 35.973
B28: Domestic Coal Requirement (MT) | C28: Imported Coal Requirement (MT) | D28: Additonal RE Capacity (GW) | E28: % of Thermal BUs Displaced by RE in 2020 | H28: 2014-03-01 | I28: 68.64 | J28: 65.61333333 | M28: Imports | N28: 4.998
B29: 929.1968345 | C29: 299.0033535 | D29: 0 | E29: 0 | H29: 2014-04-01 | I29: 67.06 | J29: 65.5025
B30: 921.3316856 | C30: 295.9273492 | D30: 13.02334342 | E30: 0.015 | H30: 2014-05-01 | I30: 66.31 | J30: 65.12833333 | M30: Thermal Coal
B31: 918.7099693 | C31: 294.9020145 | D31: 17.36445789 | E31: 0.02 | H31: 2014-06-01 | I31: 63.8 | J31: 65.37083333 | N31: 2015 | O31: 2020
B32: 916.088253 | C32: 293.8766797 | D32: 21.70557236 | E32: 0.025 | H32: 2014-07-01 | I32: 59.58 | J32: 65.61583333 | N32: Coal (Mt) | O32: Coal (Mt)
B33: 913.4665367 | C33: 292.851345 | D33: 26.04668683 | E33: 0.03 | H33: 2014-08-01 | I33: 59.07 | J33: 65.92666667 | M33: Imports | N33: 125 | O33: 167
B34: 908.2231041 | C34: 290.8006755 | D34: 34.72891578 | E34: 0.04 | H34: 2014-09-01 | I34: 65.01 | J34: 65.46583333 | M34: Domestic | N34: 419 | O34: 648
B35: 902.9796714 | C35: 288.750006 | D35: 43.41114472 | E35: 0.05 | H35: 2014-10-01 | I35: 65.69 | J35: 65.74333333
B36: 897.7362388 | C36: 286.6993365 | D36: 52.09337366 | E36: 0.06 | H36: 2014-11-01 | I36: 65.83 | J36: 65.74916667 | M36: Power distribution
B37: 892.4928062 | C37: 284.6486671 | D37: 60.77560261 | E37: 0.07 | H37: 2014-12-01 | I37: 65.44 | J37: 65.48583333 | N37: 2015 | O37: 2020
B38: 887.2493736 | C38: 282.5979976 | D38: 69.45783155 | E38: 0.08 | H38: 2015-01-01 | I38: 66.95 | J38: 65.12083333 | N38: GW | O38: GW
B39: 882.005941 | C39: 280.5473281 | D39: 78.1400605 | E39: 0.09 | H39: 2015-02-01 | I39: 62.99 | J39: 64.99666667 | M39: Coal | N39: 164.6 | O39: 229
B40: 876.7625084 | C40: 278.4966586 | D40: 86.82228944 | E40: 0.1 | H40: 2015-03-01 | I40: 62.05 | J40: 64.6975 | M40: Gas | N40: 23.1 | O40: 23.1 | P40: Assumed no growth for Gas and Deisel
B41: 871.5190757 | C41: 276.4459891 | D41: 95.50451838 | E41: 0.11 | H41: 2015-04-01 | I41: 64.27 | J41: 64.14833333 | M41: Deisel | N41: 1.2 | O41: 1.2
H42: 2015-05-01 | I42: 59.43 | J42: 63.91583333 | M42: Nuclear | N42: 5.8 | O42: 8.8
H43: 2015-06-01 | I43: 58.36 | J43: 63.3425 | M43: Hydro | N43: 41.3 | O43: 50
H44: 2015-07-01 | I44: 57.6 | J44: 62.88916667 | M44: RES | N44: 31.7 | O44: 58.2
H45: 2015-08-01 | I45: 63.63 | J45: 62.72416667
H46: 2015-09-01 | I46: 66.86 | J46: 63.10416667
H47: 2015-10-01 | I47: 60.34 | J47: 63.25833333
N60: Source
B61: Year | C61: GDP at Factor Cost - Annual Growth Rate (At Constant Prices 2004-05) | D61: Energy availability (MU) | E61: generation growth rate | F61: Elasticity Annual Generation | G61: Capacity Installed (MW) | H61: Capacity Growth Rate | I61: Elasticity Annual Capacity | N61: http://planningcommission.nic.in/data/datatable/data_2312/DatabookDec2014%2010.pdf
B62: 1997-98 | C62: 4.301613958 | D62: 390330 | G62: 89102
B63: 1998-99 | C63: 6.683389277 | D63: 420235 | E63: =((D63-D62)/(D62))*100 -> 7.661465939 | F63: =E63/C63 -> 1.14634441 | G63: 93294 | H63: =((G63-G62)/G62)*100 -> 4.704720433 | I63: =H63/$C$63 -> 0.703942302
B64: 1999-00 | C64: 8.004255142 | D64: 450594 | E64: 7.22429117 | F64: 0.9025563332 | G64: 97884 | H64: 4.919930542 | I64: 0.7361430463
B65: 2000-01 | C65: 4.148177647 | D65: 467400 | E65: 3.729743405 | F65: 0.8991281769 | G65: 101626 | H65: 3.822892403 | I65: 0.5719990629
B66: 2001-02 | C66: 5.385651406 | D66: 483350 | E66: 3.412494651 | F66: 0.6336270943 | G66: 105046 | H66: 3.365280538 | I66: 0.5035290328
B67: 2002-03 | C67: 3.877756507 | D67: 497890 | E67: 3.008172132 | F67: 0.7757506503 | G67: 107877 | H67: 2.695009805 | I67: 0.403239987
B68: 2003-04 | C68: 7.966518018 | D68: 519398 | E68: 4.319829681 | F68: 0.542248153 | G68: 112684 | H68: 4.456000816 | I68: 0.6667277082
B69: 2004-05 | C69: 7.050889688 | D69: 548115 | E69: 5.528900766 | F69: 0.7841422871 | G69: 118426 | H69: 5.095665756 | I69: 0.7624373719
B70: 2005-06 | C70: 9.477112965 | D70: 578819 | E70: 5.60174416 | F70: 0.5910812903 | G70: 124287 | H70: 4.949082127 | I70: 0.740504843
B71: 2006-07 | C71: 9.569136629 | D71: 624495 | E71: 7.891240612 | F71: 0.8246554437 | G71: 132329 | H71: 6.470507776 | I71: 0.968147673
B72: 2007-08 | C72: 9.322055772 | D72: 664660 | E72: 6.43159673 | F72: 0.6899333031 | G72: 143061 | H72: 8.110089247 | I72: 1.21346953
B73: 2008-09 | C73: 6.724774908 | D73: 691038 | E73: 3.968645623 | F73: 0.5901529311 | G73: 147966 | H73: 3.428607377 | I73: 0.513004291
B74: 2009-10 | C74: 8.594658492 | D74: 746644 | E74: 8.046735491 | F74: 0.9362484266 | G74: 159398 | H74: 7.726099239 | I74: 1.156015147
B75: 2010-11 | C75: 8.9 | D75: 788355 | E75: 5.586464232 | F75: 0.6276926103 | G75: 173626 | H75: 8.926084393 | I75: 1.335562545
B76: 2011-12 | C76: 6.7 | D76: 857886 | E76: 8.819757597 | F76: 1.316381731 | G76: 199877 | H76: 15.11927937 | I76: 2.262217379
B77: 2012-13 | C77: 4.5 | D77: 908652 | E77: 5.917569467 | F77: 1.315015437 | G77: 223344 | H77: 11.74072054 | I77: 1.756701586
B78: 2013-14 | C78: 4.7 | D78: 959829 | E78: 5.632189221 | F78: 1.198338132 | G78: 243028.95 | H78: 8.813735762 | I78: 1.318752417
B79: 2014-15* | C79: 6.9 | D79: 1048402.51 | E79: 9.228051038 | F79: 1.337398701 | G79: 267637.35 | H79: 10.12570725 | I79: 1.515055734
